{"text_format":"1","workbook":"xlsx","n_sheets":9,"sheets":["Informasjonsside","Grønn mobilitet","Gjenbruk og materialvalg","Energiløsninger","Arealbruk","Prosjektets blåhvite faktor","Beregningsunderlag","Vekting","Kriterier og poengskala"],"not_rendered":{"charts":17,"images":3,"macros":1,"external_links":0,"defined_names":84,"comments":0,"pivot_tables":0},"unopened":[],"bounds":{"document_bytes":16777216,"sheet_cells":100000,"rows_first":2000,"rows_last":500,"rows_between":2000,"halvings":0,"cell_chars":16384,"cell_head_chars":4096},"cells_cut":0,"cells_raw":0,"read":"whole","date_system":"1900"}

{"sheet":"Informasjonsside","index":0,"n_rows":68,"n_cols":7,"rows_kept":68,"cut":false,"hidden":false,"merged":[[67,1,75,9],[11,1,30,9],[39,1,50,9]]}
[null,"Sist oppdatert: 19.10.2023"]
[null,"Verktøy og veileder utarbeidet av"]
[]
[]
[]
[]
[null,"Informasjonsside"]
[]
[]
[]
[]
[null,"Blåhvit faktor er Gjøvik kommune sitt klimaverktøy for å vurdere klima opp mot saksbehandlingsprosesser, lokale forhold og kommunalt planverk. Verktøyet består av en veileder og beregningsmodell, hvorav sistnevnte er et tilleggsverktøy for å lettere følge opp klimahensyn i saksbehandling. \n\nBeregningsmodellen er tiltenkt som et praktisk verktøy som er enkelt å bruke i forbindelser med vurdering av klima- og miljøvennlig arealplanlegging og byggesaksbehandling. Veilederen og beregningsmodellen skal sammen være et verktøy for arealplanleggere, byggesaksavdelingen og utbyggere i kommunen. Målet med beregningsmodellen er å synliggjøre hvilke tiltak som gir innfrielse av kommunens klima- og miljøkrav, beskrevet i detalj i veilederen.\n\nVeilederen og beregningsmodellen skal sammen legge til rette for at det implementeres gode klima og miljøløsninger i hvert enkelt prosjekt, og er beregnet til bruk i større utbyggingsprosjekt. Blåhvit faktor verktøyet skal kvantifisere klimatiltak i byggesaker og dermed gi grunnlag for en forutsigbar innfrielse av kommunens klima- og miljøkrav.\n\nVekting av hver kategori er vist i figuren til høyre og bakgrunn for vekting for kriteriene innad kategoriene er beskrevet i detalj i veilederen. Enkelte kriterier har splittet skala for eksisterende og nye bygg, og poengutslag baseres på inndata som legges til grunn."]
[]
[]
[]
[]
[]
[]
[]
[]
[]
[]
[]
[]
[]
[]
[]
[]
[]
[]
[]
[]
[]
[null,"Legg inn data for arealer av nybygg og eksisterende bygg her (i m2 BRA)"]
[null,null,null,null,"Nybygg",20,"m2"]
[null,null,null,null,"Eksisterende bygg som bevares",20,"m2"]
[null,null,null,null,"Eksisterende bygg som rives",0,"m2"]
[]
[]
[null,"Hvordan benytter man beregningsmodellen?\nDette verktøyet inneholder en arkfane tilhørende hver kategori og er tilgjengelig nederst på siden: \n   - Grønn mobilitet\n   - Gjenbruk og materialvalg\n   - Energiløsninger \n   - Arealbruk\n\nI hver av fanene kan man legge inn poeng for aktuelle kriterier under de fire kategoriene, ved hjelp av nedtrekksmenyen. Se illustrasjonen nedenfor for kriteriet \"Tilgang til service- og rekreasjonstilbud\"."]
[]
[]
[]
[]
[]
[]
[]
[]
[]
[]
[]
[]
[]
[]
[]
[]
[]
[]
[]
[]
[]
[]
[]
[]
[]
[]
[]
[null,"Resultater\nHver kategori får illustrert utslaget til den blåhvite faktoren. Er prosjektet i tråd med Gjøvik kommunes klimaambisjoner, vil det resultere i en dypere og mørkere blå farge (i likhet med Gjøviks kommunevåpen). \n\nHvor stor blåhvit faktor et prosjekt har, vil oppsummeres i arkfanen \"Prosjektets blåhvite faktor\". Oppsummering av prosjektets blåhvite faktor inkluderer den vektede totalsummen fra hver kategori samt den vektede totalsummen for prosjektet. "]

{"sheet":"Grønn mobilitet","index":1,"n_rows":58,"n_cols":19,"rows_kept":58,"cut":false,"hidden":false,"merged":[[38,16,38,19],[39,16,39,19],[40,16,40,19],[23,2,23,5],[24,2,24,5],[25,2,25,5],[26,2,26,5],[27,16,27,18],[27,9,27,13],[26,16,26,17],[23,16,23,19],[24,16,24,19],[25,16,25,19],[23,9,23,13],[24,9,24,13],[25,9,25,13],[26,9,26,13],[42,2,42,6],[41,9,41,13],[42,9,42,13],[38,9,38,12],[39,9,39,12],[40,9,40,12],[38,2,38,6],[39,2,39,6],[40,2,40,6],[41,2,41,6]]}
[]
[]
[null,"Grønn mobilitet"]
[]
[]
[]
[null,"Beskrivelse av hensikt"]
[null,"[Sett inn tekst fra introen til kriteriesettet for Grønn mobilitet.]"]
[]
[]
[]
[]
[]
[]
[]
[]
[]
[]
[]
[null,"Kriterie 1",{"$f":"Beregningsunderlag!D29","v":"Økt etablering av ladeinfrastruktur"},null,null,null,null,null,"Kriterie 2",{"$f":"Beregningsunderlag!D30","v":"Gangevennlig utforming"},null,null,null,null,null,"Kriterie 3",{"$f":"Beregningsunderlag!D31","v":"Sykkelvennlig utforming"}]
[]
[null,"Prosjektets score",null,0,{"$f":"\"x \"&GrønnMob_V1*100&\" %\"","v":"x 8 %"},null,null,null,"Prosjektets score",null,0,{"$f":"\"x \"&GrønnMob_V2*100&\" %\"","v":"x 10 %"},null,null,null,"Prosjektets score",null,0,{"$f":"\"x \"&GrønnMob_V3*100&\" %\"","v":"x 15 %"}]
[]
[null,4,{"$f":"_xlfn.XLOOKUP(C$20,'Kriterier og poengskala'!$C$11:$C$34,_xlfn.XLOOKUP(B24,'Kriterier og poengskala'!$D$10:$H$10,'Kriterier og poengskala'!$D$11:$H$34,))","v":"> 55% av prosjektets totale bilparkeringskapasitet er forbeholdt å ha ladepunkt for el-bil"},null,null,null,null,null,4,{"$f":"_xlfn.XLOOKUP(J$20,'Kriterier og poengskala'!$C$11:$C$34,_xlfn.XLOOKUP(I24,'Kriterier og poengskala'!$D$10:$H$10,'Kriterier og poengskala'!$D$11:$H$34,))","v":"Som 1 poeng, og i tillegg er alle punkter i sjekklisten oppfylt"},null,null,null,null,null,4,{"$f":"_xlfn.XLOOKUP(Q$20,'Kriterier og poengskala'!$C$11:$C$34,_xlfn.XLOOKUP(P24,'Kriterier og poengskala'!$D$10:$H$10,'Kriterier og poengskala'!$D$11:$H$34,))","v":"Krav i KPA er oppfylt, i tillegg er alle punkt  i sjekklisten for utforming av sykkelparkering oppfylt"}]
[null,3,{"$f":"_xlfn.XLOOKUP(C$20,'Kriterier og poengskala'!$C$11:$C$34,_xlfn.XLOOKUP(B25,'Kriterier og poengskala'!$D$10:$H$10,'Kriterier og poengskala'!$D$11:$H$34,))","v":"> 40% av prosjektets totale bilparkeringskapasitet er forbeholdt å ha ladepunkt for el-bil"},null,null,null,null,null,3,{"$f":"_xlfn.XLOOKUP(J$20,'Kriterier og poengskala'!$C$11:$C$34,_xlfn.XLOOKUP(I25,'Kriterier og poengskala'!$D$10:$H$10,'Kriterier og poengskala'!$D$11:$H$34,))","v":"Som 1 poeng, og i tillegg er 1-6 i sjekklisten oppfylt"},null,null,null,null,null,3,{"$f":"_xlfn.XLOOKUP(Q$20,'Kriterier og poengskala'!$C$11:$C$34,_xlfn.XLOOKUP(P25,'Kriterier og poengskala'!$D$10:$H$10,'Kriterier og poengskala'!$D$11:$H$34,))","v":"Krav i KPA er oppfylt, i tillegg er punkt 1-7 i sjekklisten for utforming av sykkelparkering oppfylt"}]
[null,2,{"$f":"_xlfn.XLOOKUP(C$20,'Kriterier og poengskala'!$C$11:$C$34,_xlfn.XLOOKUP(B26,'Kriterier og poengskala'!$D$10:$H$10,'Kriterier og poengskala'!$D$11:$H$34,))","v":"> 30% av prosjektets totale bilparkeringskapasitet er forbeholdt å ha ladepunkt for el-bil"},null,null,null,null,null,2,{"$f":"_xlfn.XLOOKUP(J$20,'Kriterier og poengskala'!$C$11:$C$34,_xlfn.XLOOKUP(I26,'Kriterier og poengskala'!$D$10:$H$10,'Kriterier og poengskala'!$D$11:$H$34,))","v":"Som 1 poeng, og i tillegg er 1-5 på sjekklisten oppfylt"},null,null,null,null,null,2,{"$f":"_xlfn.XLOOKUP(Q$20,'Kriterier og poengskala'!$C$11:$C$34,_xlfn.XLOOKUP(P26,'Kriterier og poengskala'!$D$10:$H$10,'Kriterier og poengskala'!$D$11:$H$34,))","v":"Krav i KPA er oppfylt, i tillegg er punkt 1-6 i sjekklisten for utforming av sykkelparkering oppfylt"}]
[null,1,{"$f":"_xlfn.XLOOKUP(C$20,'Kriterier og poengskala'!$C$11:$C$34,_xlfn.XLOOKUP(B27,'Kriterier og poengskala'!$D$10:$H$10,'Kriterier og poengskala'!$D$11:$H$34,))","v":"> 20% av prosjektets totale bilparkeringskapasitet er forbeholdt å ha ladepunkt for el-bil"},null,null,null,null,null,1,{"$f":"_xlfn.XLOOKUP(J$20,'Kriterier og poengskala'!$C$11:$C$34,_xlfn.XLOOKUP(I27,'Kriterier og poengskala'!$D$10:$H$10,'Kriterier og poengskala'!$D$11:$H$34,))","v":"Gangnettet er utformet med tanke på trygghet, sikkerhet, komfort med tilstrekkelig belysning og tilrettelagt for vedlikehold året rundt. "},null,null,null,null,null,1,{"$f":"_xlfn.XLOOKUP(Q$20,'Kriterier og poengskala'!$C$11:$C$34,_xlfn.XLOOKUP(P27,'Kriterier og poengskala'!$D$10:$H$10,'Kriterier og poengskala'!$D$11:$H$34,))","v":"Krav i KPA er oppfylt"}]
[null,0,{"$f":"_xlfn.XLOOKUP(C$20,'Kriterier og poengskala'!$C$11:$C$34,_xlfn.XLOOKUP(B28,'Kriterier og poengskala'!$D$10:$H$10,'Kriterier og poengskala'!$D$11:$H$34,))","v":"Ingen ladeinfrastruktur"},null,null,null,null,null,0,{"$f":"_xlfn.XLOOKUP(J$20,'Kriterier og poengskala'!$C$11:$C$34,_xlfn.XLOOKUP(I28,'Kriterier og poengskala'!$D$10:$H$10,'Kriterier og poengskala'!$D$11:$H$34,))","v":"Ikke universelt utformet og/eller det er mer enn 70 meter avstand til nærmeste gangforbindelse"},null,null,null,null,null,0,{"$f":"_xlfn.XLOOKUP(Q$20,'Kriterier og poengskala'!$C$11:$C$34,_xlfn.XLOOKUP(P28,'Kriterier og poengskala'!$D$10:$H$10,'Kriterier og poengskala'!$D$11:$H$34,))","v":"Tilfredsstiller ikke krav i KPA"}]
[]
[]
[]
[]
[]
[]
[null,"Kriterie 4",{"$f":"Beregningsunderlag!D32","v":"Klimasmart parkering"},null,null,null,null,null,"Kriterie 5",{"$f":"Beregningsunderlag!D33","v":"Tilgang til service- og rekreasjonstilbud"},null,null,null,null,null,"Kriterie 6",{"$f":"Beregningsunderlag!D34","v":"Nærhet til kollektivtransport"}]
[]
[null,"Prosjektets score",null,0,{"$f":"\"x \"&GrønnMob_V4*100&\" %\"","v":"x 25 %"},null,null,null,"Prosjektets score",null,0,{"$f":"\"x \"&GrønnMob_V5*100&\" %\"","v":"x 15 %"},null,null,null,"Prosjektets score",null,0,{"$f":"\"x \"&GrønnMob_V6*100&\" %\"","v":"x 20 %"}]
[]
[null,4,{"$f":"_xlfn.XLOOKUP(C$35,'Kriterier og poengskala'!$C$11:$C$34,_xlfn.XLOOKUP(B39,'Kriterier og poengskala'!$D$10:$H$10,'Kriterier og poengskala'!$D$11:$H$34,))","v":"Som for 3 poeng, og i tillegg er det kortere avstand til kollektivknutepunkt enn til privat/reservert parkering. "},null,null,null,null,null,4,{"$f":"_xlfn.XLOOKUP(J$35,'Kriterier og poengskala'!$C$11:$C$34,_xlfn.XLOOKUP(I39,'Kriterier og poengskala'!$D$10:$H$10,'Kriterier og poengskala'!$D$11:$H$34,))","v":"Mer enn 7 ulike tilbud innenfor gåavstand, hvorav 1 av tilbudene skal være skole eller barnehage"},null,null,null,null,null,4,{"$f":"_xlfn.XLOOKUP(Q$35,'Kriterier og poengskala'!$C$11:$C$34,_xlfn.XLOOKUP(P39,'Kriterier og poengskala'!$D$10:$H$10,'Kriterier og poengskala'!$D$11:$H$34,))","v":"Mindre enn 300 meter til kollektivholdeplass \nmed minst 3 avganger per time på \nhverdag mellom kl. 07-18"}]
[null,3,{"$f":"_xlfn.XLOOKUP(C$35,'Kriterier og poengskala'!$C$11:$C$34,_xlfn.XLOOKUP(B40,'Kriterier og poengskala'!$D$10:$H$10,'Kriterier og poengskala'!$D$11:$H$34,))","v":"Som for 2 poeng, og i tillegg er det parkeringsplasser som er forbeholdt samkjøring / tilrettelagt for bildeling"},null,null,null,null,null,3,{"$f":"_xlfn.XLOOKUP(J$35,'Kriterier og poengskala'!$C$11:$C$34,_xlfn.XLOOKUP(I40,'Kriterier og poengskala'!$D$10:$H$10,'Kriterier og poengskala'!$D$11:$H$34,))","v":"Mer enn 5 ulike tilbud innenfor gåavstand, hvorav 1 av tilbudene skal være skole eller barnehage"},null,null,null,null,null,3,{"$f":"_xlfn.XLOOKUP(Q$35,'Kriterier og poengskala'!$C$11:$C$34,_xlfn.XLOOKUP(P40,'Kriterier og poengskala'!$D$10:$H$10,'Kriterier og poengskala'!$D$11:$H$34,))","v":"Mindre enn 400 meter til kollektivholdeplass \nmed minst 2 avganger per time på \nhverdag mellom kl. 07-18. "}]
[null,2,{"$f":"_xlfn.XLOOKUP(C$35,'Kriterier og poengskala'!$C$11:$C$34,_xlfn.XLOOKUP(B41,'Kriterier og poengskala'!$D$10:$H$10,'Kriterier og poengskala'!$D$11:$H$34,))","v":"Parkeringsdekning tilsvarer minimumskravet i KPA"},null,null,null,null,null,2,{"$f":"_xlfn.XLOOKUP(J$35,'Kriterier og poengskala'!$C$11:$C$34,_xlfn.XLOOKUP(I41,'Kriterier og poengskala'!$D$10:$H$10,'Kriterier og poengskala'!$D$11:$H$34,))","v":"Mer enn 3 ulike tilbud innenfor gåavstand, hvorav 1 av tilbudene skal være skole eller barnehage"},null,null,null,null,null,2,{"$f":"_xlfn.XLOOKUP(Q$35,'Kriterier og poengskala'!$C$11:$C$34,_xlfn.XLOOKUP(P41,'Kriterier og poengskala'!$D$10:$H$10,'Kriterier og poengskala'!$D$11:$H$34,))","v":"Mindre enn 500 meter til kollektivholdsplass \nmed minst 1 avgang per time på \nhverdag mellom kl. 07- 18"}]
[null,1,{"$f":"_xlfn.XLOOKUP(C$35,'Kriterier og poengskala'!$C$11:$C$34,_xlfn.XLOOKUP(B42,'Kriterier og poengskala'!$D$10:$H$10,'Kriterier og poengskala'!$D$11:$H$34,))","v":"Parkeringsdekning tilsvarer maksimumskravet i KPA. "},null,null,null,null,null,1,{"$f":"_xlfn.XLOOKUP(J$35,'Kriterier og poengskala'!$C$11:$C$34,_xlfn.XLOOKUP(I42,'Kriterier og poengskala'!$D$10:$H$10,'Kriterier og poengskala'!$D$11:$H$34,))","v":"Mer enn 3 ulike tilbud innenfor gåavstand"},null,null,null,null,null,1,{"$f":"_xlfn.XLOOKUP(Q$35,'Kriterier og poengskala'!$C$11:$C$34,_xlfn.XLOOKUP(P42,'Kriterier og poengskala'!$D$10:$H$10,'Kriterier og poengskala'!$D$11:$H$34,))","v":"Mer enn 500 meter til kollektivholdeplass"}]
[null,0,{"$f":"_xlfn.XLOOKUP(C$35,'Kriterier og poengskala'!$C$11:$C$34,_xlfn.XLOOKUP(B43,'Kriterier og poengskala'!$D$10:$H$10,'Kriterier og poengskala'!$D$11:$H$34,))","v":"Parkeringsdekning utover makskravet i KPA"},null,null,null,null,null,0,{"$f":"_xlfn.XLOOKUP(J$35,'Kriterier og poengskala'!$C$11:$C$34,_xlfn.XLOOKUP(I43,'Kriterier og poengskala'!$D$10:$H$10,'Kriterier og poengskala'!$D$11:$H$34,))","v":"Ingen tilbud innenfor gåavstand fra boliger"},null,null,null,null,null,0,{"$f":"_xlfn.XLOOKUP(Q$35,'Kriterier og poengskala'!$C$11:$C$34,_xlfn.XLOOKUP(P43,'Kriterier og poengskala'!$D$10:$H$10,'Kriterier og poengskala'!$D$11:$H$34,))","v":"Mer enn 1000 meter til kollektivholdeplass"}]
[]
[]
[]
[]
[]
[]
[null,"Kriterie 7",{"$f":"Beregningsunderlag!D35","v":"Innovasjonspoeng for grønn mobilitet"}]
[]
[null,"Prosjektets score",null,0,{"$f":"\"x \"&GrønnMob_V7*100&\" %\"","v":"x 7 %"}]
[]
[null,4,{"$f":"_xlfn.XLOOKUP(C$50,'Kriterier og poengskala'!$C$11:$C$34,_xlfn.XLOOKUP(B54,'Kriterier og poengskala'!$D$10:$H$10,'Kriterier og poengskala'!$D$11:$H$34,))","v":"4 eller flere innovative tiltak med bakgrunn i mobilitetsplan"}]
[null,3,{"$f":"_xlfn.XLOOKUP(C$50,'Kriterier og poengskala'!$C$11:$C$34,_xlfn.XLOOKUP(B55,'Kriterier og poengskala'!$D$10:$H$10,'Kriterier og poengskala'!$D$11:$H$34,))","v":"3 innovative tiltak med bakgrunn i mobilitetsplan"}]
[null,2,{"$f":"_xlfn.XLOOKUP(C$50,'Kriterier og poengskala'!$C$11:$C$34,_xlfn.XLOOKUP(B56,'Kriterier og poengskala'!$D$10:$H$10,'Kriterier og poengskala'!$D$11:$H$34,))","v":"2 innovative tiltak med bakgrunn i mobilitetsplan"}]
[null,1,{"$f":"_xlfn.XLOOKUP(C$50,'Kriterier og poengskala'!$C$11:$C$34,_xlfn.XLOOKUP(B57,'Kriterier og poengskala'!$D$10:$H$10,'Kriterier og poengskala'!$D$11:$H$34,))","v":"1 innovativ tiltak med bakgrunn i mobilitetsplan"}]
[null,0,{"$f":"_xlfn.XLOOKUP(C$50,'Kriterier og poengskala'!$C$11:$C$34,_xlfn.XLOOKUP(B58,'Kriterier og poengskala'!$D$10:$H$10,'Kriterier og poengskala'!$D$11:$H$34,))","v":"Ingen spesielle tiltak"}]

{"sheet":"Gjenbruk og materialvalg","index":2,"n_rows":43,"n_cols":19,"rows_kept":43,"cut":false,"hidden":false,"merged":[[27,16,27,19],[26,16,26,19],[23,2,23,6],[24,2,24,6],[25,2,25,6],[26,2,26,6],[27,2,27,6],[23,16,23,20],[24,16,24,20],[25,16,25,20]]}
[]
[]
[null,"Gjenbruk og materialvalg"]
[]
[]
[]
[null,"Beskrivelse av hensikt"]
[null,"[Sett inn tekst fra introen til kriteriesettet for Materialer.]"]
[]
[]
[]
[]
[]
[]
[]
[]
[]
[]
[]
[null,"Kriterie 1",{"$f":"Beregningsunderlag!D40","v":"Bygg på bærekraftige og fornybare materialvalg"},null,null,null,null,null,"Kriterie 2",{"$f":"Beregningsunderlag!D41","v":"Sirkulære og fleksible bygg"},null,null,null,null,null,"Kriterie 3",{"$f":"Beregningsunderlag!D42","v":"Ombruk av materialer og bevaring av eksisterende bygg"}]
[]
[null,"Prosjektets score",null,0,{"$f":"\"x \"&Material_V1*100&\" %\"","v":"x 35 %"},null,null,null,"Prosjektets score",null,0,{"$f":"\"x \"&Material_V2*100&\" %\"","v":"x 10 %"},null,null,null,"Prosjektets score",null,0,{"$f":"\"x \"&Material_V3*100&\" %\"","v":"x 35 %"}]
[]
[null,4,{"$f":"_xlfn.XLOOKUP(C$20,'Kriterier og poengskala'!$C$11:$C$34,_xlfn.XLOOKUP(B24,'Kriterier og poengskala'!$D$10:$H$10,'Kriterier og poengskala'!$D$11:$H$34,))","v":"Prosjektets materialer oppnår minimum 50 % redusert klimagassutslipp sammenlignet med et standardbygg \n(i CO2e/m2 BRA). "},null,null,null,null,null,4,{"$f":"_xlfn.XLOOKUP(J$20,'Kriterier og poengskala'!$C$11:$C$34,_xlfn.XLOOKUP(I24,'Kriterier og poengskala'!$D$10:$H$10,'Kriterier og poengskala'!$D$11:$H$34,))","v":"Alle kriteriene i sjekklisten er utført"},null,null,null,null,null,4,{"$f":"_xlfn.XLOOKUP(Q$20,'Kriterier og poengskala'!$C$11:$C$34,_xlfn.XLOOKUP(P24,'Kriterier og poengskala'!$D$10:$H$10,'Kriterier og poengskala'!$D$11:$H$34,))","v":"Minimum 50 % av materialene (målt i vekt) er ombrukte."}]
[null,3,{"$f":"_xlfn.XLOOKUP(C$20,'Kriterier og poengskala'!$C$11:$C$34,_xlfn.XLOOKUP(B25,'Kriterier og poengskala'!$D$10:$H$10,'Kriterier og poengskala'!$D$11:$H$34,))","v":"Prosjektets materialer oppnår minimum 30 % redusert klimagassutslipp sammenlignet med et standardbygg \n(i CO2e/m2 BRA). "},null,null,null,null,null,3,{"$f":"_xlfn.XLOOKUP(J$20,'Kriterier og poengskala'!$C$11:$C$34,_xlfn.XLOOKUP(I25,'Kriterier og poengskala'!$D$10:$H$10,'Kriterier og poengskala'!$D$11:$H$34,))","v":"Fem av kriteriene i sjekklisten er utført"},null,null,null,null,null,3,{"$f":"_xlfn.XLOOKUP(Q$20,'Kriterier og poengskala'!$C$11:$C$34,_xlfn.XLOOKUP(P25,'Kriterier og poengskala'!$D$10:$H$10,'Kriterier og poengskala'!$D$11:$H$34,))","v":"Minimum 30 % av materialene (målt i vekt) er ombrukte."}]
[null,2,{"$f":"_xlfn.XLOOKUP(C$20,'Kriterier og poengskala'!$C$11:$C$34,_xlfn.XLOOKUP(B26,'Kriterier og poengskala'!$D$10:$H$10,'Kriterier og poengskala'!$D$11:$H$34,))","v":"Prosjektets materialer oppnår minimum 20 % redusert klimagassutslipp sammenlignet med et standardbygg \n(i CO2e/m2 BRA). "},null,null,null,null,null,2,{"$f":"_xlfn.XLOOKUP(J$20,'Kriterier og poengskala'!$C$11:$C$34,_xlfn.XLOOKUP(I26,'Kriterier og poengskala'!$D$10:$H$10,'Kriterier og poengskala'!$D$11:$H$34,))","v":"Tre av kriteriene i sjekklisten er utført"},null,null,null,null,null,2,{"$f":"_xlfn.XLOOKUP(Q$20,'Kriterier og poengskala'!$C$11:$C$34,_xlfn.XLOOKUP(P26,'Kriterier og poengskala'!$D$10:$H$10,'Kriterier og poengskala'!$D$11:$H$34,))","v":"Minimum 10 % av materialene (målt i vekt) er ombrukte."}]
[null,1,{"$f":"_xlfn.XLOOKUP(C$20,'Kriterier og poengskala'!$C$11:$C$34,_xlfn.XLOOKUP(B27,'Kriterier og poengskala'!$D$10:$H$10,'Kriterier og poengskala'!$D$11:$H$34,))","v":"Prosjektets materialer oppnår minimum 10 % redusert klimagassutslipp sammenlignet med et standardbygg \n(i CO2e/m2 BRA). "},null,null,null,null,null,1,{"$f":"_xlfn.XLOOKUP(J$20,'Kriterier og poengskala'!$C$11:$C$34,_xlfn.XLOOKUP(I27,'Kriterier og poengskala'!$D$10:$H$10,'Kriterier og poengskala'!$D$11:$H$34,))","v":"Et av kriteriene i sjekklisten er utført"},null,null,null,null,null,1,{"$f":"_xlfn.XLOOKUP(Q$20,'Kriterier og poengskala'!$C$11:$C$34,_xlfn.XLOOKUP(P27,'Kriterier og poengskala'!$D$10:$H$10,'Kriterier og poengskala'!$D$11:$H$34,))","v":"Det er gjennomført ombrukskartlegging og gjort en vurdering av ombruk for bygningsmassen."}]
[null,0,{"$f":"_xlfn.XLOOKUP(C$20,'Kriterier og poengskala'!$C$11:$C$34,_xlfn.XLOOKUP(B28,'Kriterier og poengskala'!$D$10:$H$10,'Kriterier og poengskala'!$D$11:$H$34,))","v":"Prosjektets materialer tilsvarer et standardbygg, på nivå med gjeldende TEK"},null,null,null,null,null,0,{"$f":"_xlfn.XLOOKUP(J$20,'Kriterier og poengskala'!$C$11:$C$34,_xlfn.XLOOKUP(I28,'Kriterier og poengskala'!$D$10:$H$10,'Kriterier og poengskala'!$D$11:$H$34,))","v":"Ingen tiltak"},null,null,null,null,null,0,{"$f":"_xlfn.XLOOKUP(Q$20,'Kriterier og poengskala'!$C$11:$C$34,_xlfn.XLOOKUP(P28,'Kriterier og poengskala'!$D$10:$H$10,'Kriterier og poengskala'!$D$11:$H$34,))","v":"Ingen tiltak for ombruk. Eksisterende bebyggelse rives og materialer behandles som avfall."}]
[]
[]
[]
[]
[]
[]
[null,"Kriterie 4",{"$f":"Beregningsunderlag!D43","v":"Avfallsmengde i byggefase"},null,null,null,null,null,"Kriterie 5",{"$f":"Beregningsunderlag!D44","v":"Innovasjonspoeng for ombrukbare materialer i fremtiden"}]
[]
[null,"Prosjektets score",null,0,{"$f":"\"x \"&Material_V4*100&\" %\"","v":"x 10 %"},null,null,null,"Prosjektets score",null,0,{"$f":"\"x \"&Material_V5*100&\" %\"","v":"x 10 %"}]
[]
[null,4,{"$f":"_xlfn.XLOOKUP(C$35,'Kriterier og poengskala'!$C$11:$C$34,_xlfn.XLOOKUP(B39,'Kriterier og poengskala'!$D$10:$H$10,'Kriterier og poengskala'!$D$11:$H$34,))","v":"Mengden byggavfall generert er maks 19 kg/m2 BRA"},null,null,null,null,null,4,{"$f":"_xlfn.XLOOKUP(J$35,'Kriterier og poengskala'!$C$11:$C$34,_xlfn.XLOOKUP(I39,'Kriterier og poengskala'!$D$10:$H$10,'Kriterier og poengskala'!$D$11:$H$34,))","v":"Alle punktene i sjekklisten er oppfylt"}]
[null,3,{"$f":"_xlfn.XLOOKUP(C$35,'Kriterier og poengskala'!$C$11:$C$34,_xlfn.XLOOKUP(B40,'Kriterier og poengskala'!$D$10:$H$10,'Kriterier og poengskala'!$D$11:$H$34,))","v":"Mengden byggavfall generert er maks 25 kg/m2 BRA"},null,null,null,null,null,3,{"$f":"_xlfn.XLOOKUP(J$35,'Kriterier og poengskala'!$C$11:$C$34,_xlfn.XLOOKUP(I40,'Kriterier og poengskala'!$D$10:$H$10,'Kriterier og poengskala'!$D$11:$H$34,))","v":"10 av punktene i sjekklisten er oppfylt"}]
[null,2,{"$f":"_xlfn.XLOOKUP(C$35,'Kriterier og poengskala'!$C$11:$C$34,_xlfn.XLOOKUP(B41,'Kriterier og poengskala'!$D$10:$H$10,'Kriterier og poengskala'!$D$11:$H$34,))","v":"Mengden byggavfall generert er maks 40 kg/m2 BRA"},null,null,null,null,null,2,{"$f":"_xlfn.XLOOKUP(J$35,'Kriterier og poengskala'!$C$11:$C$34,_xlfn.XLOOKUP(I41,'Kriterier og poengskala'!$D$10:$H$10,'Kriterier og poengskala'!$D$11:$H$34,))","v":"7 av punktene i sjekklisten er oppfylt"}]
[null,1,{"$f":"_xlfn.XLOOKUP(C$35,'Kriterier og poengskala'!$C$11:$C$34,_xlfn.XLOOKUP(B42,'Kriterier og poengskala'!$D$10:$H$10,'Kriterier og poengskala'!$D$11:$H$34,))","v":"Det er utarbeidet en plan for avfalls-/ressurshåndtering"},null,null,null,null,null,1,{"$f":"_xlfn.XLOOKUP(J$35,'Kriterier og poengskala'!$C$11:$C$34,_xlfn.XLOOKUP(I42,'Kriterier og poengskala'!$D$10:$H$10,'Kriterier og poengskala'!$D$11:$H$34,))","v":"4 av punktene i sjekklisten er oppfylt"}]
[null,0,{"$f":"_xlfn.XLOOKUP(C$35,'Kriterier og poengskala'!$C$11:$C$34,_xlfn.XLOOKUP(B43,'Kriterier og poengskala'!$D$10:$H$10,'Kriterier og poengskala'!$D$11:$H$34,))","v":"Det er ingen plan for avfallshåndtering i byggefasen"},null,null,null,null,null,0,{"$f":"_xlfn.XLOOKUP(J$35,'Kriterier og poengskala'!$C$11:$C$34,_xlfn.XLOOKUP(I43,'Kriterier og poengskala'!$D$10:$H$10,'Kriterier og poengskala'!$D$11:$H$34,))","v":"Ingen tiltak utover krav i KPA"}]

{"sheet":"Energiløsninger","index":3,"n_rows":43,"n_cols":19,"rows_kept":43,"cut":false,"hidden":false,"merged":[[23,2,23,6],[24,2,24,6],[25,2,25,6],[26,2,26,6],[27,2,27,6],[39,2,39,6],[40,2,40,6],[42,2,42,5],[41,2,41,5],[27,16,27,20],[34,2,34,5],[38,2,38,5],[27,9,27,13],[23,16,23,19],[23,9,23,13],[24,9,24,13],[25,9,25,13],[26,9,26,13],[24,16,24,19],[25,16,25,19],[26,16,26,19]]}
[]
[]
[null,"Energiløsninger"]
[]
[]
[]
[null,"Beskrivelse av hensikt"]
[null,"[Sett inn tekst fra introen til kriteriesettet for Energi.]"]
[]
[]
[]
[]
[]
[]
[]
[]
[]
[]
[]
[null,"Kriterie 1",{"$f":"Beregningsunderlag!D49","v":"Energiytelser i driftsfase av bygg - Nybygg"},null,null,null,null,null,"Kriterie 1",{"$f":"Beregningsunderlag!D50","v":"Energiytelser i driftsfase av bygg - Eksisterende bygg"},null,null,null,null,null,"Kriterie 2",{"$f":"Beregningsunderlag!D51","v":"Lokal fornybar energiproduksjon"}]
[]
[null,"Prosjektets score",null,0,{"$f":"\"x \"&ROUND(Energi_V11,2)*100&\" %\"","v":"x 18 %"},null,null,null,"Prosjektets score",null,0,{"$f":"\"x \"&ROUND(Energi_V12,2)*100&\" %\"","v":"x 18 %"},null,null,null,"Prosjektets score",null,0,{"$f":"\"x \"&Energi_V2*100&\" %\"","v":"x 30 %"}]
[]
[null,4,"Nybygg: Plusshusnivå etter FutureBuilts kriterier.",null,null,null,null,null,4,"Eksisterende bygg: Oppgradert til nZEB-nivå etter FutureBuilts kriterier eller bedre",null,null,null,null,null,4,{"$f":"_xlfn.XLOOKUP(Q$20,'Kriterier og poengskala'!$C$11:$C$34,_xlfn.XLOOKUP(P24,'Kriterier og poengskala'!$D$10:$H$10,'Kriterier og poengskala'!$D$11:$H$34,))","v":"Lokal fornybar energiforsyning og/eller spillvarme dekker 100% av energibruken i området"}]
[null,3,"Nybygg: nZEB-nivå etter FutureBuilts kriterier.",null,null,null,null,null,3,"Eksisterende bygg: Oppgradert til/tilsvarer 30% bedre enn TEK nivå eller bedre",null,null,null,null,null,3,{"$f":"_xlfn.XLOOKUP(Q$20,'Kriterier og poengskala'!$C$11:$C$34,_xlfn.XLOOKUP(P25,'Kriterier og poengskala'!$D$10:$H$10,'Kriterier og poengskala'!$D$11:$H$34,))","v":"Lokal fornybar energiforsyning og/eller spillvarme dekker minst 50% av energibruken i området"}]
[null,2,"Nybygg: Netto energibehov tilsvarer 30% lavere enn nivå i gjeldende TEK.",null,null,null,null,null,2,"Eksisterende bygg: Oppgradert til/tilsvarer gjeldende nivå i TEK eller bedre",null,null,null,null,null,2,{"$f":"_xlfn.XLOOKUP(Q$20,'Kriterier og poengskala'!$C$11:$C$34,_xlfn.XLOOKUP(P26,'Kriterier og poengskala'!$D$10:$H$10,'Kriterier og poengskala'!$D$11:$H$34,))","v":"Lokal fornybar energiforsyning og/eller spillvarme dekker minst 20% av energibruken i området"}]
[null,1,"Nybygg: Netto energibehov tilsvarer 10% lavere enn nivå i gjeldende TEK",null,null,null,null,null,1,"Eksisterende bygg: Oppgradert til minimum 20 % redusert energibehov fra eksisterende tilstand",null,null,null,null,null,1,{"$f":"_xlfn.XLOOKUP(Q$20,'Kriterier og poengskala'!$C$11:$C$34,_xlfn.XLOOKUP(P27,'Kriterier og poengskala'!$D$10:$H$10,'Kriterier og poengskala'!$D$11:$H$34,))","v":"Lokal fornybar energiforsyning og/eller spillvarme dekker minst 10% av energibruken i området"}]
[null,0,"Nybygg: Netto energibehov tilsvarer nivå i gjeldende TEK.",null,null,null,null,null,0,"Eksisterende bygg: Ingen tiltak for å forbedre byggets energiytelser",null,null,null,null,null,0,{"$f":"_xlfn.XLOOKUP(Q$20,'Kriterier og poengskala'!$C$11:$C$34,_xlfn.XLOOKUP(P28,'Kriterier og poengskala'!$D$10:$H$10,'Kriterier og poengskala'!$D$11:$H$34,))","v":"Ingen lokal fornybar energiforsyning / ingen dokumentasjon. \nFor prosjekter utenfor konsesjonsområde eller som fritas tilkoplingsplikt, skal nullutslippsløsninger vurderes. \n\n(Gjelder nybygg og ved hovedombygging med samlet oppvarmet bruksareal er over 500 m2)"}]
[]
[]
[]
[]
[]
[]
[null,"Kriterie 3",{"$f":"Beregningsunderlag!D52","v":"Lav og nullutslippsteknologi i bygg- og anleggsfase"},null,null,null,null,null,"Kriterie 4",{"$f":"Beregningsunderlag!D53","v":"Innovasjonspoeng for energiløsninger"}]
[]
[null,"Prosjektets score",null,0,{"$f":"\"x \"&Energi_V3*100&\" %\"","v":"x 25 %"},null,null,null,"Prosjektets score",null,0,{"$f":"\"x \"&Energi_V4*100&\" %\"","v":"x 10 %"}]
[]
[null,4,"Utslippsfri byggeplass\nByggvarme og tørk: utslippsfritt ved bruk av ren-elektrisk, varmepumpe, fjernvarme. \nBygge- og anleggsplass: utslippsfritt. \nTransport: delvis utslippsfritt",null,null,null,null,null,4,{"$f":"_xlfn.XLOOKUP(J$35,'Kriterier og poengskala'!$C$11:$C$34,_xlfn.XLOOKUP(I39,'Kriterier og poengskala'!$D$10:$H$10,'Kriterier og poengskala'!$D$11:$H$34,))","v":"4 eller flere innovative tiltak "}]
[null,3,"Fossilfri byggeplass\nByggvarme og tørk: utslippsfritt ved bruk av ren-elektrisk, varmepumpe, fjernvarme. \nBygge- og anleggsplass: delvis utslippsfritt for anleggsmaskiner. \nTransport: utslippsfritt for persontransport og varebiler",null,null,null,null,null,3,{"$f":"_xlfn.XLOOKUP(J$35,'Kriterier og poengskala'!$C$11:$C$34,_xlfn.XLOOKUP(I40,'Kriterier og poengskala'!$D$10:$H$10,'Kriterier og poengskala'!$D$11:$H$34,))","v":"3 innovative tiltak "}]
[null,2,"Lett fossilfri byggeplass\nByggvarme og tørk: utslippsfritt ved bruk av ren-elektrisk, varmepumpe, fjernvarme. \nBygge- og anleggsplass: fossilfritt. \nTransport: iht. miljødirektoratet sine omsetningskrav",null,null,null,null,null,2,{"$f":"_xlfn.XLOOKUP(J$35,'Kriterier og poengskala'!$C$11:$C$34,_xlfn.XLOOKUP(I41,'Kriterier og poengskala'!$D$10:$H$10,'Kriterier og poengskala'!$D$11:$H$34,))","v":"2 innovative tiltak "}]
[null,1,{"$f":"_xlfn.XLOOKUP(C$35,'Kriterier og poengskala'!$C$11:$C$34,_xlfn.XLOOKUP(B42,'Kriterier og poengskala'!$D$10:$H$10,'Kriterier og poengskala'!$D$11:$H$34,))","v":"Det er utarbeidet en plan for å redusere klimagassutslipp i bygge- og anleggsfasen"},null,null,null,null,null,1,{"$f":"_xlfn.XLOOKUP(J$35,'Kriterier og poengskala'!$C$11:$C$34,_xlfn.XLOOKUP(I42,'Kriterier og poengskala'!$D$10:$H$10,'Kriterier og poengskala'!$D$11:$H$34,))","v":"1 innovativ tiltak "}]
[null,0,{"$f":"_xlfn.XLOOKUP(C$35,'Kriterier og poengskala'!$C$11:$C$34,_xlfn.XLOOKUP(B43,'Kriterier og poengskala'!$D$10:$H$10,'Kriterier og poengskala'!$D$11:$H$34,))","v":"Ingen tiltak for å redusere utslipp.\n\nMerk at: Det stilles minimumskrav om bruk av Euro 6-klassifiserte kjøretøy på byggeplassen og i forbindelse med transport til og fra anleggsplassen."},null,null,null,null,null,0,{"$f":"_xlfn.XLOOKUP(J$35,'Kriterier og poengskala'!$C$11:$C$34,_xlfn.XLOOKUP(I43,'Kriterier og poengskala'!$D$10:$H$10,'Kriterier og poengskala'!$D$11:$H$34,))","v":"Ingen spesielle tiltak"}]

{"sheet":"Arealbruk","index":4,"n_rows":58,"n_cols":19,"rows_kept":58,"cut":false,"hidden":false,"merged":[[53,9,53,13],[54,9,54,13],[55,9,55,13],[56,9,56,13],[48,2,49,6],[48,9,49,13],[53,2,53,6],[54,2,54,6],[55,2,55,6],[56,2,56,6],[19,2,19,6],[19,9,19,13],[34,9,34,13],[34,16,34,20],[23,2,23,6],[23,9,23,13],[24,2,24,6],[25,2,25,6],[26,2,26,6],[27,2,27,6],[23,16,23,20],[24,16,24,20],[25,16,25,20],[26,16,26,20],[38,2,38,5],[39,2,39,5],[40,2,40,5],[41,2,41,5],[42,2,42,5],[41,16,41,19],[44,8,45,13],[27,16,27,19],[38,9,38,13],[39,9,39,13],[40,9,40,13],[41,9,41,13],[42,9,42,13]]}
[]
[]
[null,"Arealbruk"]
[]
[]
[]
[null,"Beskrivelse av hensikt"]
[null,"[Sett inn tekst fra introen til kriteriesettet for Arealbruk, hvorfor klimatilpasning er satt her samt overvannshåndtering og blågrønn faktor?.]"]
[]
[]
[]
[]
[]
[]
[]
[]
[]
[]
[]
[null,"Kriterie 1",{"$f":"Beregningsunderlag!D58","v":"Attraktive uteområder med blågrønne strukturer"},null,null,null,null,null,"Kriterie 2",{"$f":"Beregningsunderlag!D59","v":"Bevaring av viktig grønnstruktur og karbonrike areal"},null,null,null,null,null,"Kriterie 3",{"$f":"Beregningsunderlag!D60","v":"Etablering av karbonbindende vegetasjon"}]
[]
[null,"Prosjektets score",null,0,{"$f":"\"x \"&Arealbruk_V1*100&\" %\"","v":"x 15 %"},null,null,null,"Prosjektets score",null,0,{"$f":"\"x \"&Arealbruk_V2*100&\" %\"","v":"x 20 %"},null,null,null,"Prosjektets score",null,0,{"$f":"\"x \"&Arealbruk_V3*100&\" %\"","v":"x 20 %"}]
[]
[null,4,{"$f":"_xlfn.XLOOKUP(C$20,'Kriterier og poengskala'!$C$11:$C$34,_xlfn.XLOOKUP(B24,'Kriterier og poengskala'!$D$10:$H$10,'Kriterier og poengskala'!$D$11:$H$34,))","v":"Samme som for 1 poeng, og i tillegg er alle punkter på sjekklisten er oppnådd, og prosjektet oppnår minimum 0,7 i blågrønn faktor"},null,null,null,null,null,4,{"$f":"_xlfn.XLOOKUP(J$20,'Kriterier og poengskala'!$C$11:$C$34,_xlfn.XLOOKUP(I24,'Kriterier og poengskala'!$D$10:$H$10,'Kriterier og poengskala'!$D$11:$H$34,))","v":"Bygge på allerede bebygd område eller bearbeide flater, og bevaring av eksisterende naturmangfold. "},null,null,null,null,null,4,{"$f":"_xlfn.XLOOKUP(Q$20,'Kriterier og poengskala'!$C$11:$C$34,_xlfn.XLOOKUP(P24,'Kriterier og poengskala'!$D$10:$H$10,'Kriterier og poengskala'!$D$11:$H$34,))","v":"Minimum 30 % av planområdet reguleres som ubebygd og vegetert, og alle tiltakene i sjekklisten for å øke karbonbindingen er sikret."}]
[null,3,{"$f":"_xlfn.XLOOKUP(C$20,'Kriterier og poengskala'!$C$11:$C$34,_xlfn.XLOOKUP(B25,'Kriterier og poengskala'!$D$10:$H$10,'Kriterier og poengskala'!$D$11:$H$34,))","v":"Samme som 1 poeng, og i tillegg er 7 punkter på sjekklisten oppnådd, og prosjektet oppnår minimum 0,7 i blågrønn faktor"},null,null,null,null,null,3,{"$f":"_xlfn.XLOOKUP(J$20,'Kriterier og poengskala'!$C$11:$C$34,_xlfn.XLOOKUP(I25,'Kriterier og poengskala'!$D$10:$H$10,'Kriterier og poengskala'!$D$11:$H$34,))","v":"Bygge på allererde bebygd område eller bearbeide flater"},null,null,null,null,null,3,{"$f":"_xlfn.XLOOKUP(Q$20,'Kriterier og poengskala'!$C$11:$C$34,_xlfn.XLOOKUP(P25,'Kriterier og poengskala'!$D$10:$H$10,'Kriterier og poengskala'!$D$11:$H$34,))","v":"Minimum 20 % av planområdet reguleres som ubebygd og vegetert, og minimum 6 av tiltakene i sjekklisten for å øke karbonbindingen er sikret."}]
[null,2,{"$f":"_xlfn.XLOOKUP(C$20,'Kriterier og poengskala'!$C$11:$C$34,_xlfn.XLOOKUP(B26,'Kriterier og poengskala'!$D$10:$H$10,'Kriterier og poengskala'!$D$11:$H$34,))","v":"Samme som 1 poeng, og i tillegg er 5 punkter på sjekkliste er oppfylt, og prosjektet oppnår minimum 0,3 i blågrønn faktor"},null,null,null,null,null,2,{"$f":"_xlfn.XLOOKUP(J$20,'Kriterier og poengskala'!$C$11:$C$34,_xlfn.XLOOKUP(I26,'Kriterier og poengskala'!$D$10:$H$10,'Kriterier og poengskala'!$D$11:$H$34,))","v":"Bygge på ubebygd område uten vesentlige naturverdier/åpen fastmark"},null,null,null,null,null,2,{"$f":"_xlfn.XLOOKUP(Q$20,'Kriterier og poengskala'!$C$11:$C$34,_xlfn.XLOOKUP(P26,'Kriterier og poengskala'!$D$10:$H$10,'Kriterier og poengskala'!$D$11:$H$34,))","v":"Minimum 20 % av planområdet reguleres som ubebygd og vegetert, og minimum 3 av tiltakene i sjekklisten for å øke karbonbindingen er sikret."}]
[null,1,{"$f":"_xlfn.XLOOKUP(C$20,'Kriterier og poengskala'!$C$11:$C$34,_xlfn.XLOOKUP(B27,'Kriterier og poengskala'!$D$10:$H$10,'Kriterier og poengskala'!$D$11:$H$34,))","v":"Oppfyller krav til uteområder og overvannshåndtering iht KPA "},null,null,null,null,null,1,{"$f":"_xlfn.XLOOKUP(J$20,'Kriterier og poengskala'!$C$11:$C$34,_xlfn.XLOOKUP(I27,'Kriterier og poengskala'!$D$10:$H$10,'Kriterier og poengskala'!$D$11:$H$34,))","v":"Bygge ned dyrka mark, beite og annen utmark."},null,null,null,null,null,1,{"$f":"_xlfn.XLOOKUP(Q$20,'Kriterier og poengskala'!$C$11:$C$34,_xlfn.XLOOKUP(P27,'Kriterier og poengskala'!$D$10:$H$10,'Kriterier og poengskala'!$D$11:$H$34,))","v":"Minimum 10 % av planområdet reguleres som ubebygd og vegetert"}]
[null,0,{"$f":"_xlfn.XLOOKUP(C$20,'Kriterier og poengskala'!$C$11:$C$34,_xlfn.XLOOKUP(B28,'Kriterier og poengskala'!$D$10:$H$10,'Kriterier og poengskala'!$D$11:$H$34,))","v":"Oppfyller ikke krav til uteområder og overvannshåndtering iht KPA"},null,null,null,null,null,0,{"$f":"_xlfn.XLOOKUP(J$20,'Kriterier og poengskala'!$C$11:$C$34,_xlfn.XLOOKUP(I28,'Kriterier og poengskala'!$D$10:$H$10,'Kriterier og poengskala'!$D$11:$H$34,))","v":"Bygge ned skog og myr/våtmark eller økosystemer i vann"},null,null,null,null,null,0,{"$f":"_xlfn.XLOOKUP(Q$20,'Kriterier og poengskala'!$C$11:$C$34,_xlfn.XLOOKUP(P28,'Kriterier og poengskala'!$D$10:$H$10,'Kriterier og poengskala'!$D$11:$H$34,))","v":"Ingen tiltak for å etablere karbonbindende vegetasjon"}]
[]
[]
[]
[]
[]
[]
[null,"Kriterie 4",{"$f":"Beregningsunderlag!D61","v":"Arealeffektive områder"},null,null,null,null,null,"Kriterie 5",{"$f":"Beregningsunderlag!D62","v":"Massehåndtering"},null,null,null,null,null,"Kriterie 6",{"$f":"Beregningsunderlag!D63","v":"Utføre en klimarisikovurdering med tilhørende klimatilpasning"}]
[]
[null,"Prosjektets score",null,0,{"$f":"\"x \"&Arealbruk_V4*100&\" %\"","v":"x 5 %"},null,null,null,"Prosjektets score",null,0,{"$f":"\"x \"&Arealbruk_V5*100&\" %\"","v":"x 5 %"},null,null,null,"Prosjektets score",null,0,{"$f":"\"x \"&Arealbruk_V6*100&\" %\"","v":"x 25 %"}]
[]
[null,4,"Sentrumsformål/bybebyggelse: > 200 % BRA \nAndre områder: > 50 % BYA",null,null,null,null,null,4,{"$f":"_xlfn.XLOOKUP(J$35,'Kriterier og poengskala'!$C$11:$C$34,_xlfn.XLOOKUP(I39,'Kriterier og poengskala'!$D$10:$H$10,'Kriterier og poengskala'!$D$11:$H$34,))","v":"Minimum 30 % av planområdet forblir uberørt. For resterende del av planområdet er massebalanse oppnådd samt overskuddsmasser behandles/gjenbrukes lokalt i planområdet."},null,null,null,null,null,4,{"$f":"_xlfn.XLOOKUP(Q$35,'Kriterier og poengskala'!$C$11:$C$34,_xlfn.XLOOKUP(P39,'Kriterier og poengskala'!$D$10:$H$10,'Kriterier og poengskala'!$D$11:$H$34,))","v":"Samme som 1 poeng og planlegger å utføre 100 % av tiltakene"}]
[null,3,"Sentrumsformål/bybebyggelse: > 180 % BRA  \nAndre områder: > 40 % BYA",null,null,null,null,null,3,{"$f":"_xlfn.XLOOKUP(J$35,'Kriterier og poengskala'!$C$11:$C$34,_xlfn.XLOOKUP(I40,'Kriterier og poengskala'!$D$10:$H$10,'Kriterier og poengskala'!$D$11:$H$34,))","v":"Massebalanse er oppnådd, overskuddsmasser behandles/gjenbrukes lokalt i planområdet. Eventuelt bortkjørt masse er foredlet til byggeråstoffer som pukk, grus, sand o.l"},null,null,null,null,null,3,{"$f":"_xlfn.XLOOKUP(Q$35,'Kriterier og poengskala'!$C$11:$C$34,_xlfn.XLOOKUP(P40,'Kriterier og poengskala'!$D$10:$H$10,'Kriterier og poengskala'!$D$11:$H$34,))","v":"Samme som 1 poeng og planlegger å utføre > 50 % av tiltakene"}]
[null,2,"Sentrumsformål/bybebyggelse: > 160 % BRA  \nAndre områder: > 30 % BYA",null,null,null,null,null,2,{"$f":"_xlfn.XLOOKUP(J$35,'Kriterier og poengskala'!$C$11:$C$34,_xlfn.XLOOKUP(I41,'Kriterier og poengskala'!$D$10:$H$10,'Kriterier og poengskala'!$D$11:$H$34,))","v":"Som for 0 poeng, men overskuddsmasser tilgjengeliggjøres og benyttes i andre, nærliggende prosjekt* med godkjenning for mottak av denne typen og denne mengden masser."},null,null,null,null,null,2,{"$f":"_xlfn.XLOOKUP(Q$35,'Kriterier og poengskala'!$C$11:$C$34,_xlfn.XLOOKUP(P41,'Kriterier og poengskala'!$D$10:$H$10,'Kriterier og poengskala'!$D$11:$H$34,))","v":"Samme som 1 poeng og planlegger å utføre > 25 % av tiltakene"}]
[null,1,"Sentrumsformål/bybebyggelse: > 130 % BRA   \nAndre områder: > 25 % BYA",null,null,null,null,null,1,{"$f":"_xlfn.XLOOKUP(J$35,'Kriterier og poengskala'!$C$11:$C$34,_xlfn.XLOOKUP(I42,'Kriterier og poengskala'!$D$10:$H$10,'Kriterier og poengskala'!$D$11:$H$34,))","v":"Tiltaket medfører uttak/deponering av masser < 1000 m3, berører areal < 1 da eller gir et avvik fra eksisterende terreng < 3 m."},null,null,null,null,null,1,{"$f":"_xlfn.XLOOKUP(Q$35,'Kriterier og poengskala'!$C$11:$C$34,_xlfn.XLOOKUP(P42,'Kriterier og poengskala'!$D$10:$H$10,'Kriterier og poengskala'!$D$11:$H$34,))","v":"Utført klimarisikoanalyse og beskrive anbefalinger og løsninger i prosjekt "}]
[null,0,"Sentrumsformål/bybebyggelse: < 130 % BRA \nAndre områder: < 25 % BYA",null,null,null,null,null,0,{"$f":"_xlfn.XLOOKUP(J$35,'Kriterier og poengskala'!$C$11:$C$34,_xlfn.XLOOKUP(I43,'Kriterier og poengskala'!$D$10:$H$10,'Kriterier og poengskala'!$D$11:$H$34,))","v":"Tiltaket medfører uttak/deponering av masser > 1000 m3, berører areal > 1 da eller gir et avvik fra eksisterende terreng > 3 m. "},null,null,null,null,null,0,{"$f":"_xlfn.XLOOKUP(Q$35,'Kriterier og poengskala'!$C$11:$C$34,_xlfn.XLOOKUP(P43,'Kriterier og poengskala'!$D$10:$H$10,'Kriterier og poengskala'!$D$11:$H$34,))","v":"Ikke utført klimarisiko"}]
[]
[null,null,null,null,null,null,null,null,"*nærliggende prosjekt defineres som innenfor Gjøvik kommune, samt inntil 10 km i transportavstand fra tomt til mottak i nabokommune"]
[]
[]
[]
[null,"Kriterie 7",{"$f":"Beregningsunderlag!D64","v":"Arealer med fellesfunksjoner"},null,null,null,null,null,"Kriterie 8",{"$f":"Beregningsunderlag!D65","v":"Innovasjonspoeng for beregning av klimakonsekvenser fra arealbruksendring"}]
[]
[]
[null,"Prosjektets score",null,0,{"$f":"\"x \"&Arealbruk_V7*100&\" %\"","v":"x 5 %"},null,null,null,"Prosjektets score",null,0,{"$f":"\"x \"&Arealbruk_V8*100&\" %\"","v":"x 5 %"}]
[]
[null,4,{"$f":"_xlfn.XLOOKUP(C$49,'Kriterier og poengskala'!$C$11:$C$34,_xlfn.XLOOKUP(B54,'Kriterier og poengskala'!$D$10:$H$10,'Kriterier og poengskala'!$D$11:$H$34,))","v":"Prosjektet tilrettelegger for minimum 15 m2 fellesareal per boenhet og pr 100 m2 BRA annet formål til fellesfunksjoner."},null,null,null,null,null,4,{"$f":"_xlfn.XLOOKUP(J$49,'Kriterier og poengskala'!$C$11:$C$34,_xlfn.XLOOKUP(I54,'Kriterier og poengskala'!$D$10:$H$10,'Kriterier og poengskala'!$D$11:$H$34,))","v":"Betydelig netto opptak av CO2e ift. før utbyggingen."}]
[null,3,{"$f":"_xlfn.XLOOKUP(C$49,'Kriterier og poengskala'!$C$11:$C$34,_xlfn.XLOOKUP(B55,'Kriterier og poengskala'!$D$10:$H$10,'Kriterier og poengskala'!$D$11:$H$34,))","v":"Prosjektet tilrettelegger for minimum 9 m2 fellesareal per boenhet og pr 100 m2 BRA annet formål til fellesfunksjoner."},null,null,null,null,null,3,{"$f":"_xlfn.XLOOKUP(J$49,'Kriterier og poengskala'!$C$11:$C$34,_xlfn.XLOOKUP(I55,'Kriterier og poengskala'!$D$10:$H$10,'Kriterier og poengskala'!$D$11:$H$34,))","v":"Netto opptak av  CO2e ift. før utbyggingen."}]
[null,2,{"$f":"_xlfn.XLOOKUP(C$49,'Kriterier og poengskala'!$C$11:$C$34,_xlfn.XLOOKUP(B56,'Kriterier og poengskala'!$D$10:$H$10,'Kriterier og poengskala'!$D$11:$H$34,))","v":"Prosjektet tilrettelegger for minimum 3 m2 fellesareal per boenhet og pr 100 m2 BRA annet formål til fellesfunksjoner."},null,null,null,null,null,2,{"$f":"_xlfn.XLOOKUP(J$49,'Kriterier og poengskala'!$C$11:$C$34,_xlfn.XLOOKUP(I56,'Kriterier og poengskala'!$D$10:$H$10,'Kriterier og poengskala'!$D$11:$H$34,))","v":"Beregning viser ingen økte utslipp som følge av utbygging."}]
[null,1,{"$f":"_xlfn.XLOOKUP(C$49,'Kriterier og poengskala'!$C$11:$C$34,_xlfn.XLOOKUP(B57,'Kriterier og poengskala'!$D$10:$H$10,'Kriterier og poengskala'!$D$11:$H$34,))","v":"Prosjektet tilrettelegger for innendørs fellesfunksjoner og sambruk av arealer, minimum forsamlingsrom med kjøkken og verkstedrom."},null,null,null,null,null,1,{"$f":"_xlfn.XLOOKUP(J$49,'Kriterier og poengskala'!$C$11:$C$34,_xlfn.XLOOKUP(I57,'Kriterier og poengskala'!$D$10:$H$10,'Kriterier og poengskala'!$D$11:$H$34,))","v":"Beregning utført, men viser økte utslipp som følge av utbygging."}]
[null,0,{"$f":"_xlfn.XLOOKUP(C$49,'Kriterier og poengskala'!$C$11:$C$34,_xlfn.XLOOKUP(B58,'Kriterier og poengskala'!$D$10:$H$10,'Kriterier og poengskala'!$D$11:$H$34,))","v":"Ingen tilrettelegging"},null,null,null,null,null,0,{"$f":"_xlfn.XLOOKUP(J$49,'Kriterier og poengskala'!$C$11:$C$34,_xlfn.XLOOKUP(I58,'Kriterier og poengskala'!$D$10:$H$10,'Kriterier og poengskala'!$D$11:$H$34,))","v":"Ingen analyse gjort"}]

{"sheet":"Prosjektets blåhvite faktor","index":5,"n_rows":51,"n_cols":6,"rows_kept":51,"cut":false,"hidden":false,"merged":[]}
[]
[]
[null,"Prosjektets blåhvite faktor"]
[]
[]
[]
[]
[]
[]
[null,"Oppsummering av kriteriekategoriene"]
[]
[null,null,"Energiløsninger"]
[null,null,{"$f":"Energi_T1.1_Nybygg","v":0},"Energiytelser i driftsfase av bygg - Nybygg"]
[null,null,{"$f":"Energi_T1.2_EksBygg","v":0},"Energiytelser i driftsfase av bygg - Eksisterende bygg"]
[null,null,{"$f":"Energi_T2","v":0},"Lokal fornybar energiproduksjon"]
[null,null,{"$f":"Energi_T3","v":0},"Lav og nullutslippsteknologi i bygg- og anleggsfase"]
[null,null,{"$f":"Energi_T4","v":0},"Innovasjonspoeng for energiløsninger"]
[null,{"$f":"Energi_KatPoeng","v":0}]
[]
[]
[null,null,"Gjenbruk og materialvalg"]
[null,null,{"$f":"Material_T1","v":0},"Bygg på bærekraftige og fornybare materialvalg"]
[null,null,{"$f":"Material_T2","v":0},"Sirkulære og fleksible bygg"]
[null,null,{"$f":"Material_T3","v":0},"Ombruk av materialer og bevaring av eksisterende bygg"]
[null,null,{"$f":"Material_T4","v":0},"Avfallsmengde i byggefase"]
[null,null,{"$f":"Material_T5","v":0},"Innovasjonspoeng for ombrukbare materialer i fremtiden"]
[null,{"$f":"Material_KatPoeng","v":0}]
[]
[]
[]
[null,null,"Grønn mobilitet",null,null," "]
[null,null,{"$f":"GrønnMob_T1","v":0},"Økt etablering av ladeinfrastruktur"]
[null,null,{"$f":"GrønnMob_T2","v":0},"Gangevennlig utforming"]
[null,null,{"$f":"GrønnMob_T3","v":0},"Sykkelvennlig utforming"]
[null,null,{"$f":"GrønnMob_T4","v":0},"Klimasmart parkering"]
[null,null,{"$f":"GrønnMob_T5","v":0},"Tilgang til service- og rekreasjonstilbud"]
[null,null,{"$f":"GrønnMob_T6","v":0},"Nærhet til kollektivtransport"]
[null,{"$f":"GrønnMobilitet_KatPoeng","v":0},{"$f":"GrønnMob_T7","v":0},"Innovasjonspoeng for grønn mobilitet"]
[]
[]
[]
[]
[null,null,"Arealbruk"]
[null,null,{"$f":"Arealbruk_T1","v":0},"Attraktive uteområder med blågrønne strukturer"]
[null,null,{"$f":"Arealbruk_T2","v":0},"Bevaring av viktig grønnstruktur og karbonrike areal"]
[null,null,{"$f":"Arealbruk_T3","v":0},"Etablering av karbonbindende vegetasjon"]
[null,null,{"$f":"Arealbruk_T4","v":0},"Arealeffektive områder"]
[null,null,{"$f":"Arealbruk_T5","v":0},"Massehåndtering"]
[null,null,{"$f":"Arealbruk_T6","v":0},"Utføre en klimarisikovurdering med tilhørende klimatilpasning"]
[null,{"$f":"Arealbruk_KatPoeng","v":0},{"$f":"Arealbruk_T7","v":0},"Arealer med fellesfunksjoner"]
[null,null,{"$f":"Arealbruk_T8","v":0},"Innovasjonspoeng for beregning av klimakonsekvenser fra arealbruksendring"]

{"sheet":"Beregningsunderlag","index":6,"n_rows":66,"n_cols":17,"rows_kept":66,"cut":false,"hidden":true,"merged":[]}
[]
[]
[null,"Beregningsunderlag"]
[]
[]
[]
[]
[]
[]
[null,"Vekting"]
[]
[null,null,"Kategori","Vektingsprosent","Poeng (vises)","Oppnåelse %","Kategoripoeng","Til figur","Oppnåelse 2019"]
[null,null,"Grønn mobilitet",0.25,{"$f":"GrønnMobilitet[[#Totals],[Kategoripoeng]]","v":0},{"$f":"(Vekting1[[#This Row],[Poeng (vises)]]/4)*Vekting1[[#This Row],[Vektingsprosent]]","v":0},{"$f":"GrønnMobilitet[[#Totals],[Kategoripoeng]]","v":0},{"$f":"$E$20-Vekting1[[#This Row],[Kategoripoeng]]","v":4},{"$f":"INDEX(Vekting1[[Vektingsprosent]:[Kategoripoeng]],MATCH(Vekting!C74,Vekting1[Kategori],0),MATCH(\"Oppnåelse %\",Vekting1[[#Headers],[Vektingsprosent]:[Kategoripoeng]],0))","v":0}]
[null,null,"Gjenbruk og materialvalg",0.2,{"$f":"GjenbrukMaterialvalg[[#Totals],[Kategoripoeng]]","v":0},{"$f":"(Vekting1[[#This Row],[Poeng (vises)]]/4)*Vekting1[[#This Row],[Vektingsprosent]]","v":0},{"$f":"GjenbrukMaterialvalg[[#Totals],[Kategoripoeng]]","v":0},{"$f":"$E$20-Vekting1[[#This Row],[Kategoripoeng]]","v":4},{"$f":"INDEX(Vekting1[[Vektingsprosent]:[Kategoripoeng]],MATCH(Vekting!C72,Vekting1[Kategori],0),MATCH(\"Oppnåelse %\",Vekting1[[#Headers],[Vektingsprosent]:[Kategoripoeng]],0))","v":0}]
[null,null,"Energiløsninger",0.2,{"$f":"Energi[[#Totals],[Kategoripoeng]]","v":0},{"$f":"(Vekting1[[#This Row],[Poeng (vises)]]/4)*Vekting1[[#This Row],[Vektingsprosent]]","v":0},{"$f":"Energi[[#Totals],[Kategoripoeng]]","v":0},{"$f":"$E$20-Vekting1[[#This Row],[Kategoripoeng]]","v":4},{"$f":"INDEX(Vekting1[[Vektingsprosent]:[Kategoripoeng]],MATCH(Vekting!C70,Vekting1[Kategori],0),MATCH(\"Oppnåelse %\",Vekting1[[#Headers],[Vektingsprosent]:[Kategoripoeng]],0))","v":0}]
[null,null,"Arealbruk",0.35,{"$f":"Arealbruk[[#Totals],[Kategoripoeng]]","v":0},{"$f":"(Vekting1[[#This Row],[Poeng (vises)]]/4)*Vekting1[[#This Row],[Vektingsprosent]]","v":0},{"$f":"Arealbruk[[#Totals],[Kategoripoeng]]","v":0},{"$f":"$E$20-Vekting1[[#This Row],[Kategoripoeng]]","v":4},{"$f":"INDEX(Vekting1[[Vektingsprosent]:[Kategoripoeng]],MATCH(Vekting!C68,Vekting1[Kategori],0),MATCH(\"Oppnåelse %\",Vekting1[[#Headers],[Vektingsprosent]:[Kategoripoeng]],0))","v":0}]
[null,null,"Totalt",{"$f":"SUBTOTAL(109,Vekting1[Vektingsprosent])","v":1},{"$f":"SUBTOTAL(101,Vekting1[Poeng (vises)])","v":0},{"$f":"SUBTOTAL(109,Vekting1[Oppnåelse %])","v":0},{"$f":"SUBTOTAL(109,Vekting1[Kategoripoeng])","v":0}]
[]
[]
[null,null,null,"Maksimalt poeng tilgjengelig per kriterie:",4]
[]
[]
[null,"Kategorier, tiltak og blåhvit faktor"]
[]
[null,"Antall kriterier:",24,null,null,null,"Prosjektets blåhvite faktor:  ",{"$f":"SUM(GrønnMobilitet[[#Totals],[Blåhvit faktor]],GjenbrukMaterialvalg[[#Totals],[Blåhvit faktor]],Energi[[#Totals],[Blåhvit faktor]],Arealbruk[[#Totals],[Blåhvit faktor]])","v":0},{"$f":"H25*E20","v":0}]
[]
[null,null,"Grønn mobilitet"]
[null,null,"Kriterienr.","Kriterie","Poeng","Vekting","Kategoripoeng","Score","Blåhvit faktor",null,"Inndata"]
[null,null,1,"Økt etablering av ladeinfrastruktur",{"$f":"GrønnMob_T1","v":0},0.08,{"$f":"GrønnMobilitet[[#This Row],[Poeng]]*GrønnMobilitet[[#This Row],[Vekting]]","v":0},{"$f":"GrønnMobilitet[[#This Row],[Poeng]]/4*GrønnMobilitet[[#This Row],[Vekting]]","v":0},{"$f":"INDEX(Vekting1[[Vektingsprosent]:[Kategoripoeng]],MATCH($C$27,Vekting1[Kategori],0),MATCH(\"Vektingsprosent\",Vekting1[[#Headers],[Vektingsprosent]:[Kategoripoeng]],0))*GrønnMobilitet[[#This Row],[Score]]","v":0},null,"Nybygg",{"$f":"IF(ISBLANK(Nybygg),\"0\",Nybygg)","v":20},"m2"]
[null,null,2,"Gangevennlig utforming",{"$f":"GrønnMob_T2","v":0},0.1,{"$f":"GrønnMobilitet[[#This Row],[Poeng]]*GrønnMobilitet[[#This Row],[Vekting]]","v":0},{"$f":"GrønnMobilitet[[#This Row],[Poeng]]/4*GrønnMobilitet[[#This Row],[Vekting]]","v":0},{"$f":"INDEX(Vekting1[[Vektingsprosent]:[Kategoripoeng]],MATCH($C$27,Vekting1[Kategori],0),MATCH(\"Vektingsprosent\",Vekting1[[#Headers],[Vektingsprosent]:[Kategoripoeng]],0))*GrønnMobilitet[[#This Row],[Score]]","v":0},null,"Eks.bygg, bevart",{"$f":"IF(ISBLANK(EksBygg_Bevart),\"0\",EksBygg_Bevart)","v":20},"m2"]
[null,null,3,"Sykkelvennlig utforming",{"$f":"GrønnMob_T3","v":0},0.15,{"$f":"GrønnMobilitet[[#This Row],[Poeng]]*GrønnMobilitet[[#This Row],[Vekting]]","v":0},{"$f":"GrønnMobilitet[[#This Row],[Poeng]]/4*GrønnMobilitet[[#This Row],[Vekting]]","v":0},{"$f":"INDEX(Vekting1[[Vektingsprosent]:[Kategoripoeng]],MATCH($C$27,Vekting1[Kategori],0),MATCH(\"Vektingsprosent\",Vekting1[[#Headers],[Vektingsprosent]:[Kategoripoeng]],0))*GrønnMobilitet[[#This Row],[Score]]","v":0},null,"Eks.bygg, rives",{"$f":"IF(ISBLANK(EksBygg_Rives),\"0\",EksBygg_Rives)","v":0},"m2"]
[null,null,4,"Klimasmart parkering",{"$f":"GrønnMob_T4","v":0},0.25,{"$f":"GrønnMobilitet[[#This Row],[Poeng]]*GrønnMobilitet[[#This Row],[Vekting]]","v":0},{"$f":"GrønnMobilitet[[#This Row],[Poeng]]/4*GrønnMobilitet[[#This Row],[Vekting]]","v":0},{"$f":"INDEX(Vekting1[[Vektingsprosent]:[Kategoripoeng]],MATCH($C$27,Vekting1[Kategori],0),MATCH(\"Vektingsprosent\",Vekting1[[#Headers],[Vektingsprosent]:[Kategoripoeng]],0))*GrønnMobilitet[[#This Row],[Score]]","v":0},null,"Tot",{"$f":"SUM(L29:L31)","v":40},"m2",null,{"$f":"EksBygg_Rives_m2","v":0}]
[null,null,5,"Tilgang til service- og rekreasjonstilbud",{"$f":"GrønnMob_T5","v":0},0.15,{"$f":"GrønnMobilitet[[#This Row],[Poeng]]*GrønnMobilitet[[#This Row],[Vekting]]","v":0},{"$f":"GrønnMobilitet[[#This Row],[Poeng]]/4*GrønnMobilitet[[#This Row],[Vekting]]","v":0},{"$f":"INDEX(Vekting1[[Vektingsprosent]:[Kategoripoeng]],MATCH($C$27,Vekting1[Kategori],0),MATCH(\"Vektingsprosent\",Vekting1[[#Headers],[Vektingsprosent]:[Kategoripoeng]],0))*GrønnMobilitet[[#This Row],[Score]]","v":0}]
[null,null,6,"Nærhet til kollektivtransport",{"$f":"GrønnMob_T6","v":0},0.2,{"$f":"GrønnMobilitet[[#This Row],[Poeng]]*GrønnMobilitet[[#This Row],[Vekting]]","v":0},{"$f":"GrønnMobilitet[[#This Row],[Poeng]]/4*GrønnMobilitet[[#This Row],[Vekting]]","v":0},{"$f":"INDEX(Vekting1[[Vektingsprosent]:[Kategoripoeng]],MATCH($C$27,Vekting1[Kategori],0),MATCH(\"Vektingsprosent\",Vekting1[[#Headers],[Vektingsprosent]:[Kategoripoeng]],0))*GrønnMobilitet[[#This Row],[Score]]","v":0},null,null,"Nybygg","Eksisterende bygg",null,null,"Materialer","Energi"]
[null,null,7,"Innovasjonspoeng for grønn mobilitet",{"$f":"GrønnMob_T7","v":0},7.0000000000000007E-2,{"$f":"GrønnMobilitet[[#This Row],[Poeng]]*GrønnMobilitet[[#This Row],[Vekting]]","v":0},{"$f":"GrønnMobilitet[[#This Row],[Poeng]]/4*GrønnMobilitet[[#This Row],[Vekting]]","v":0},{"$f":"INDEX(Vekting1[[Vektingsprosent]:[Kategoripoeng]],MATCH($C$27,Vekting1[Kategori],0),MATCH(\"Vektingsprosent\",Vekting1[[#Headers],[Vektingsprosent]:[Kategoripoeng]],0))*GrønnMobilitet[[#This Row],[Score]]","v":0},null,"Ratio",{"$f":"IF(AND((EksBygg_Bevart_m2=0),((EksBygg_Rives_m2=0))),1,((Nybygg_m2/SUM(Nybygg_m2,EksBygg_Bevart_m2,EksBygg_Rives_m2))))","v":0.5},{"$f":"IF(AND(EksBygg_Bevart_m2=0,EksBygg_Rives_m2=0),0,(((SUM(EksBygg_Bevart_m2,EksBygg_Rives_m2))/SUM(Nybygg_m2,EksBygg_Bevart_m2,EksBygg_Rives_m2))))","v":0.5},null,"Sum vekting ",0.7,0.35]
[null,null,"Totalt",null,null,{"$f":"SUBTOTAL(109,GrønnMobilitet[Vekting])","v":1},{"$f":"SUBTOTAL(109,GrønnMobilitet[Kategoripoeng])","v":0},null,{"$f":"SUBTOTAL(109,GrønnMobilitet[Blåhvit faktor])","v":0},null," - materialer",{"$f":"ROUND(Ratio_Nybygg*VektingSum_Materialer,2)","v":0.35},{"$f":"ROUND(Ratio_EksBygg*VektingSum_Materialer,2)","v":0.35}]
[null,null,null,null,null,null,null,null,null,null," - energi",{"$f":"Ratio_Nybygg*VektingSum_Energi","v":0.17499999999999999},{"$f":"Ratio_EksBygg*VektingSum_Energi","v":0.17499999999999999}]
[null,null,"Gjenbruk og materialvalg"]
[null,null,"Kriterienr.","Kriterie","Poeng","Vekting","Kategoripoeng","Score","Blåhvit faktor"]
[null,null,1,"Bygg på bærekraftige og fornybare materialvalg",{"$f":"Material_T1","v":0},{"$f":"Materialer_Nybygg_V1","v":0.35},{"$f":"GjenbrukMaterialvalg[[#This Row],[Poeng]]*GjenbrukMaterialvalg[[#This Row],[Vekting]]","v":0},{"$f":"GjenbrukMaterialvalg[[#This Row],[Poeng]]/4*GjenbrukMaterialvalg[[#This Row],[Vekting]]","v":0},{"$f":"INDEX(Vekting1[[Vektingsprosent]:[Kategoripoeng]],MATCH($C$38,Vekting1[Kategori],0),MATCH(\"Vektingsprosent\",Vekting1[[#Headers],[Vektingsprosent]:[Kategoripoeng]],0))*GjenbrukMaterialvalg[[#This Row],[Score]]","v":0}]
[null,null,2,"Sirkulære og fleksible bygg",{"$f":"Material_T2","v":0},0.1,{"$f":"GjenbrukMaterialvalg[[#This Row],[Poeng]]*GjenbrukMaterialvalg[[#This Row],[Vekting]]","v":0},{"$f":"GjenbrukMaterialvalg[[#This Row],[Poeng]]/4*GjenbrukMaterialvalg[[#This Row],[Vekting]]","v":0},{"$f":"INDEX(Vekting1[[Vektingsprosent]:[Kategoripoeng]],MATCH($C$38,Vekting1[Kategori],0),MATCH(\"Vektingsprosent\",Vekting1[[#Headers],[Vektingsprosent]:[Kategoripoeng]],0))*GjenbrukMaterialvalg[[#This Row],[Score]]","v":0}]
[null,null,3,"Ombruk av materialer og bevaring av eksisterende bygg",{"$f":"Material_T3","v":0},{"$f":"Materialer_EksBygg_V","v":0.35},{"$f":"GjenbrukMaterialvalg[[#This Row],[Poeng]]*GjenbrukMaterialvalg[[#This Row],[Vekting]]","v":0},{"$f":"GjenbrukMaterialvalg[[#This Row],[Poeng]]/4*GjenbrukMaterialvalg[[#This Row],[Vekting]]","v":0},{"$f":"INDEX(Vekting1[[Vektingsprosent]:[Kategoripoeng]],MATCH($C$38,Vekting1[Kategori],0),MATCH(\"Vektingsprosent\",Vekting1[[#Headers],[Vektingsprosent]:[Kategoripoeng]],0))*GjenbrukMaterialvalg[[#This Row],[Score]]","v":0}]
[null,null,4,"Avfallsmengde i byggefase",{"$f":"Material_T4","v":0},0.1,{"$f":"GjenbrukMaterialvalg[[#This Row],[Poeng]]*GjenbrukMaterialvalg[[#This Row],[Vekting]]","v":0},{"$f":"GjenbrukMaterialvalg[[#This Row],[Poeng]]/4*GjenbrukMaterialvalg[[#This Row],[Vekting]]","v":0},{"$f":"INDEX(Vekting1[[Vektingsprosent]:[Kategoripoeng]],MATCH($C$38,Vekting1[Kategori],0),MATCH(\"Vektingsprosent\",Vekting1[[#Headers],[Vektingsprosent]:[Kategoripoeng]],0))*GjenbrukMaterialvalg[[#This Row],[Score]]","v":0}]
[null,null,5,"Innovasjonspoeng for ombrukbare materialer i fremtiden",{"$f":"Material_T5","v":0},0.1,{"$f":"GjenbrukMaterialvalg[[#This Row],[Poeng]]*GjenbrukMaterialvalg[[#This Row],[Vekting]]","v":0},{"$f":"GjenbrukMaterialvalg[[#This Row],[Poeng]]/4*GjenbrukMaterialvalg[[#This Row],[Vekting]]","v":0},{"$f":"INDEX(Vekting1[[Vektingsprosent]:[Kategoripoeng]],MATCH($C$38,Vekting1[Kategori],0),MATCH(\"Vektingsprosent\",Vekting1[[#Headers],[Vektingsprosent]:[Kategoripoeng]],0))*GjenbrukMaterialvalg[[#This Row],[Score]]","v":0}]
[null,null,"Totalt",null,null,{"$f":"SUBTOTAL(109,GjenbrukMaterialvalg[Vekting])","v":0.99999999999999989},{"$f":"SUBTOTAL(109,GjenbrukMaterialvalg[Kategoripoeng])","v":0},null,{"$f":"SUBTOTAL(109,GjenbrukMaterialvalg[Blåhvit faktor])","v":0}]
[]
[null,null,"Energiløsninger"]
[null,null,"Kriterienr.","Kriterie","Poeng","Vekting","Kategoripoeng","Score","Blåhvit faktor"]
[null,null,"1.1","Energiytelser i driftsfase av bygg - Nybygg",{"$f":"Energi_T1.1_Nybygg","v":0},{"$f":"Energi_Nybygg_V","v":0.17499999999999999},{"$f":"Energi[[#This Row],[Poeng]]*Energi[[#This Row],[Vekting]]","v":0},{"$f":"Energi[[#This Row],[Poeng]]/4*Energi[[#This Row],[Vekting]]","v":0},{"$f":"INDEX(Vekting1[[Vektingsprosent]:[Kategoripoeng]],MATCH($C$47,Vekting1[Kategori],0),MATCH(\"Vektingsprosent\",Vekting1[[#Headers],[Vektingsprosent]:[Kategoripoeng]],0))*Energi[[#This Row],[Score]]","v":0}]
[null,null,"1.2","Energiytelser i driftsfase av bygg - Eksisterende bygg",{"$f":"Energi_T1.2_EksBygg","v":0},{"$f":"Energi_EksBygg_V","v":0.17499999999999999},{"$f":"Energi[[#This Row],[Poeng]]*Energi[[#This Row],[Vekting]]","v":0},{"$f":"Energi[[#This Row],[Poeng]]/4*Energi[[#This Row],[Vekting]]","v":0},{"$f":"INDEX(Vekting1[[Vektingsprosent]:[Kategoripoeng]],MATCH($C$47,Vekting1[Kategori],0),MATCH(\"Vektingsprosent\",Vekting1[[#Headers],[Vektingsprosent]:[Kategoripoeng]],0))*Energi[[#This Row],[Score]]","v":0}]
[null,null,2,"Lokal fornybar energiproduksjon",{"$f":"Energi_T2","v":0},0.3,{"$f":"Energi[[#This Row],[Poeng]]*Energi[[#This Row],[Vekting]]","v":0},{"$f":"Energi[[#This Row],[Poeng]]/4*Energi[[#This Row],[Vekting]]","v":0},{"$f":"INDEX(Vekting1[[Vektingsprosent]:[Kategoripoeng]],MATCH($C$47,Vekting1[Kategori],0),MATCH(\"Vektingsprosent\",Vekting1[[#Headers],[Vektingsprosent]:[Kategoripoeng]],0))*Energi[[#This Row],[Score]]","v":0}]
[null,null,3,"Lav og nullutslippsteknologi i bygg- og anleggsfase",{"$f":"Energi_T3","v":0},0.25,{"$f":"Energi[[#This Row],[Poeng]]*Energi[[#This Row],[Vekting]]","v":0},{"$f":"Energi[[#This Row],[Poeng]]/4*Energi[[#This Row],[Vekting]]","v":0},{"$f":"INDEX(Vekting1[[Vektingsprosent]:[Kategoripoeng]],MATCH($C$47,Vekting1[Kategori],0),MATCH(\"Vektingsprosent\",Vekting1[[#Headers],[Vektingsprosent]:[Kategoripoeng]],0))*Energi[[#This Row],[Score]]","v":0}]
[null,null,4,"Innovasjonspoeng for energiløsninger",{"$f":"Energi_T4","v":0},0.1,{"$f":"Energi[[#This Row],[Poeng]]*Energi[[#This Row],[Vekting]]","v":0},{"$f":"Energi[[#This Row],[Poeng]]/4*Energi[[#This Row],[Vekting]]","v":0},{"$f":"INDEX(Vekting1[[Vektingsprosent]:[Kategoripoeng]],MATCH($C$47,Vekting1[Kategori],0),MATCH(\"Vektingsprosent\",Vekting1[[#Headers],[Vektingsprosent]:[Kategoripoeng]],0))*Energi[[#This Row],[Score]]","v":0}]
[null,null,"Totalt",null,null,{"$f":"SUBTOTAL(109,Energi[Vekting])","v":0.99999999999999989},{"$f":"SUBTOTAL(109,Energi[Kategoripoeng])","v":0},null,{"$f":"SUBTOTAL(109,Energi[Blåhvit faktor])","v":0}]
[]
[null,null,"Arealbruk"]
[null,null,"Kriterienr.","Kriterie","Poeng","Vekting","Kategoripoeng","Score","Blåhvit faktor"]
[null,null,1,"Attraktive uteområder med blågrønne strukturer",{"$f":"Arealbruk_T1","v":0},0.15,{"$f":"Arealbruk[[#This Row],[Poeng]]*Arealbruk[[#This Row],[Vekting]]","v":0},{"$f":"Arealbruk[[#This Row],[Poeng]]/4*Arealbruk[[#This Row],[Vekting]]","v":0},{"$f":"INDEX(Vekting1[[Vektingsprosent]:[Kategoripoeng]],MATCH($C$56,Vekting1[Kategori],0),MATCH(\"Vektingsprosent\",Vekting1[[#Headers],[Vektingsprosent]:[Kategoripoeng]],0))*Arealbruk[[#This Row],[Score]]","v":0}]
[null,null,2,"Bevaring av viktig grønnstruktur og karbonrike areal",{"$f":"Arealbruk_T2","v":0},0.2,{"$f":"Arealbruk[[#This Row],[Poeng]]*Arealbruk[[#This Row],[Vekting]]","v":0},{"$f":"Arealbruk[[#This Row],[Poeng]]/4*Arealbruk[[#This Row],[Vekting]]","v":0},{"$f":"INDEX(Vekting1[[Vektingsprosent]:[Kategoripoeng]],MATCH($C$56,Vekting1[Kategori],0),MATCH(\"Vektingsprosent\",Vekting1[[#Headers],[Vektingsprosent]:[Kategoripoeng]],0))*Arealbruk[[#This Row],[Score]]","v":0}]
[null,null,3,"Etablering av karbonbindende vegetasjon",{"$f":"Arealbruk_T3","v":0},0.2,{"$f":"Arealbruk[[#This Row],[Poeng]]*Arealbruk[[#This Row],[Vekting]]","v":0},{"$f":"Arealbruk[[#This Row],[Poeng]]/4*Arealbruk[[#This Row],[Vekting]]","v":0},{"$f":"INDEX(Vekting1[[Vektingsprosent]:[Kategoripoeng]],MATCH($C$56,Vekting1[Kategori],0),MATCH(\"Vektingsprosent\",Vekting1[[#Headers],[Vektingsprosent]:[Kategoripoeng]],0))*Arealbruk[[#This Row],[Score]]","v":0}]
[null,null,4,"Arealeffektive områder",{"$f":"Arealbruk_T4","v":0},0.05,{"$f":"Arealbruk[[#This Row],[Poeng]]*Arealbruk[[#This Row],[Vekting]]","v":0},{"$f":"Arealbruk[[#This Row],[Poeng]]/4*Arealbruk[[#This Row],[Vekting]]","v":0},{"$f":"INDEX(Vekting1[[Vektingsprosent]:[Kategoripoeng]],MATCH($C$56,Vekting1[Kategori],0),MATCH(\"Vektingsprosent\",Vekting1[[#Headers],[Vektingsprosent]:[Kategoripoeng]],0))*Arealbruk[[#This Row],[Score]]","v":0}]
[null,null,5,"Massehåndtering",{"$f":"Arealbruk_T5","v":0},0.05,{"$f":"Arealbruk[[#This Row],[Poeng]]*Arealbruk[[#This Row],[Vekting]]","v":0},{"$f":"Arealbruk[[#This Row],[Poeng]]/4*Arealbruk[[#This Row],[Vekting]]","v":0},{"$f":"INDEX(Vekting1[[Vektingsprosent]:[Kategoripoeng]],MATCH($C$56,Vekting1[Kategori],0),MATCH(\"Vektingsprosent\",Vekting1[[#Headers],[Vektingsprosent]:[Kategoripoeng]],0))*Arealbruk[[#This Row],[Score]]","v":0}]
[null,null,6,"Utføre en klimarisikovurdering med tilhørende klimatilpasning",{"$f":"Arealbruk_T6","v":0},0.25,{"$f":"Arealbruk[[#This Row],[Poeng]]*Arealbruk[[#This Row],[Vekting]]","v":0},{"$f":"Arealbruk[[#This Row],[Poeng]]/4*Arealbruk[[#This Row],[Vekting]]","v":0},{"$f":"INDEX(Vekting1[[Vektingsprosent]:[Kategoripoeng]],MATCH($C$56,Vekting1[Kategori],0),MATCH(\"Vektingsprosent\",Vekting1[[#Headers],[Vektingsprosent]:[Kategoripoeng]],0))*Arealbruk[[#This Row],[Score]]","v":0}]
[null,null,7,"Arealer med fellesfunksjoner",{"$f":"Arealbruk_T7","v":0},0.05,{"$f":"Arealbruk[[#This Row],[Poeng]]*Arealbruk[[#This Row],[Vekting]]","v":0},{"$f":"Arealbruk[[#This Row],[Poeng]]/4*Arealbruk[[#This Row],[Vekting]]","v":0},{"$f":"INDEX(Vekting1[[Vektingsprosent]:[Kategoripoeng]],MATCH($C$56,Vekting1[Kategori],0),MATCH(\"Vektingsprosent\",Vekting1[[#Headers],[Vektingsprosent]:[Kategoripoeng]],0))*Arealbruk[[#This Row],[Score]]","v":0}]
[null,null,8,"Innovasjonspoeng for beregning av klimakonsekvenser fra arealbruksendring",{"$f":"Arealbruk_T8","v":0},0.05,{"$f":"Arealbruk[[#This Row],[Poeng]]*Arealbruk[[#This Row],[Vekting]]","v":0},{"$f":"Arealbruk[[#This Row],[Poeng]]/4*Arealbruk[[#This Row],[Vekting]]","v":0},{"$f":"INDEX(Vekting1[[Vektingsprosent]:[Kategoripoeng]],MATCH($C$56,Vekting1[Kategori],0),MATCH(\"Vektingsprosent\",Vekting1[[#Headers],[Vektingsprosent]:[Kategoripoeng]],0))*Arealbruk[[#This Row],[Score]]","v":0}]
[null,null,"Totalt",null,null,{"$f":"SUBTOTAL(109,Arealbruk[Vekting])","v":1.0000000000000002},{"$f":"SUBTOTAL(109,Arealbruk[Kategoripoeng])","v":0},null,{"$f":"SUBTOTAL(109,Arealbruk[Blåhvit faktor])","v":0}]

{"sheet":"Vekting","index":7,"n_rows":75,"n_cols":7,"rows_kept":75,"cut":false,"hidden":true,"merged":[]}
[]
[]
[null,"Vektingen i blåhvit faktor"]
[]
[]
[]
[]
[]
[null,"Vekting av klimakriterier (per kategori og totalt sett)"]
[]
[]
[null,"Vekting","Kategori","Klimakriterie per kategori","Vekting innen kategori","Vekting totalt (100%)"]
[null,{"$f":"INDEX(Vekting1[[Vektingsprosent]:[Kategoripoeng]],MATCH($C$13,Vekting1[Kategori],0),MATCH(\"Vektingsprosent\",Vekting1[[#Headers],[Vektingsprosent]:[Kategoripoeng]],0))","v":0.25},"Grønn mobilitet","Økt etablering av ladeinfrastruktur",{"$f":"INDEX(GrønnMobilitet[[Poeng]:[Blåhvit faktor]],MATCH(Vekting!D13,GrønnMobilitet[Kriterie],0),MATCH(GrønnMobilitet[[#Headers],[Vekting]],GrønnMobilitet[[#Headers],[Poeng]:[Blåhvit faktor]],0))","v":0.08},{"$f":"INDEX(Vekting1[[Vektingsprosent]:[Kategoripoeng]],MATCH($C$13,Vekting1[Kategori],0),MATCH(\"Vektingsprosent\",Vekting1[[#Headers],[Vektingsprosent]:[Kategoripoeng]],0))*E13","v":0.02},{"$f":"IF(SUMIFS($F$13:$F$35,$C$13:$C$35,C13)=$B13,\"Vekting for kategorien er OK!\",\"Sjekk opp\")","v":"Vekting for kategorien er OK!"}]
[null,null,"Grønn mobilitet","Gangevennlig utforming",{"$f":"INDEX(GrønnMobilitet[[Poeng]:[Blåhvit faktor]],MATCH(Vekting!D14,GrønnMobilitet[Kriterie],0),MATCH(GrønnMobilitet[[#Headers],[Vekting]],GrønnMobilitet[[#Headers],[Poeng]:[Blåhvit faktor]],0))","v":0.1},{"$f":"INDEX(Vekting1[[Vektingsprosent]:[Kategoripoeng]],MATCH($C$13,Vekting1[Kategori],0),MATCH(\"Vektingsprosent\",Vekting1[[#Headers],[Vektingsprosent]:[Kategoripoeng]],0))*E14","v":2.5000000000000001E-2}]
[null,null,"Grønn mobilitet","Sykkelvennlig utforming",{"$f":"INDEX(GrønnMobilitet[[Poeng]:[Blåhvit faktor]],MATCH(Vekting!D15,GrønnMobilitet[Kriterie],0),MATCH(GrønnMobilitet[[#Headers],[Vekting]],GrønnMobilitet[[#Headers],[Poeng]:[Blåhvit faktor]],0))","v":0.15},{"$f":"INDEX(Vekting1[[Vektingsprosent]:[Kategoripoeng]],MATCH($C$13,Vekting1[Kategori],0),MATCH(\"Vektingsprosent\",Vekting1[[#Headers],[Vektingsprosent]:[Kategoripoeng]],0))*E15","v":3.7499999999999999E-2}]
[null,null,"Grønn mobilitet","Klimasmart parkering",{"$f":"INDEX(GrønnMobilitet[[Poeng]:[Blåhvit faktor]],MATCH(Vekting!D16,GrønnMobilitet[Kriterie],0),MATCH(GrønnMobilitet[[#Headers],[Vekting]],GrønnMobilitet[[#Headers],[Poeng]:[Blåhvit faktor]],0))","v":0.25},{"$f":"INDEX(Vekting1[[Vektingsprosent]:[Kategoripoeng]],MATCH($C$13,Vekting1[Kategori],0),MATCH(\"Vektingsprosent\",Vekting1[[#Headers],[Vektingsprosent]:[Kategoripoeng]],0))*E16","v":6.25E-2}]
[null,null,"Grønn mobilitet","Tilgang til service- og rekreasjonstilbud",{"$f":"INDEX(GrønnMobilitet[[Poeng]:[Blåhvit faktor]],MATCH(Vekting!D17,GrønnMobilitet[Kriterie],0),MATCH(GrønnMobilitet[[#Headers],[Vekting]],GrønnMobilitet[[#Headers],[Poeng]:[Blåhvit faktor]],0))","v":0.15},{"$f":"INDEX(Vekting1[[Vektingsprosent]:[Kategoripoeng]],MATCH($C$13,Vekting1[Kategori],0),MATCH(\"Vektingsprosent\",Vekting1[[#Headers],[Vektingsprosent]:[Kategoripoeng]],0))*E17","v":3.7499999999999999E-2}]
[null,null,"Grønn mobilitet","Nærhet til kollektivtransport",{"$f":"INDEX(GrønnMobilitet[[Poeng]:[Blåhvit faktor]],MATCH(Vekting!D18,GrønnMobilitet[Kriterie],0),MATCH(GrønnMobilitet[[#Headers],[Vekting]],GrønnMobilitet[[#Headers],[Poeng]:[Blåhvit faktor]],0))","v":0.2},{"$f":"INDEX(Vekting1[[Vektingsprosent]:[Kategoripoeng]],MATCH($C$13,Vekting1[Kategori],0),MATCH(\"Vektingsprosent\",Vekting1[[#Headers],[Vektingsprosent]:[Kategoripoeng]],0))*E18","v":0.05}]
[null,null,"Grønn mobilitet","Innovasjonspoeng for grønn mobilitet",{"$f":"INDEX(GrønnMobilitet[[Poeng]:[Blåhvit faktor]],MATCH(Vekting!D19,GrønnMobilitet[Kriterie],0),MATCH(GrønnMobilitet[[#Headers],[Vekting]],GrønnMobilitet[[#Headers],[Poeng]:[Blåhvit faktor]],0))","v":7.0000000000000007E-2},{"$f":"INDEX(Vekting1[[Vektingsprosent]:[Kategoripoeng]],MATCH($C$13,Vekting1[Kategori],0),MATCH(\"Vektingsprosent\",Vekting1[[#Headers],[Vektingsprosent]:[Kategoripoeng]],0))*E19","v":1.7500000000000002E-2}]
[null,{"$f":"INDEX(Vekting1[[Vektingsprosent]:[Kategoripoeng]],MATCH($C$20,Vekting1[Kategori],0),MATCH(\"Vektingsprosent\",Vekting1[[#Headers],[Vektingsprosent]:[Kategoripoeng]],0))","v":0.2},"Gjenbruk og materialvalg","Bygg på bærekraftige og fornybare materialvalg",{"$f":"INDEX(GjenbrukMaterialvalg[[Poeng]:[Blåhvit faktor]],MATCH(Vekting!D20,GjenbrukMaterialvalg[Kriterie],0),MATCH(GjenbrukMaterialvalg[[#Headers],[Vekting]],GjenbrukMaterialvalg[[#Headers],[Poeng]:[Blåhvit faktor]],0))","v":0.35},{"$f":"INDEX(Vekting1[[Vektingsprosent]:[Kategoripoeng]],MATCH($C$20,Vekting1[Kategori],0),MATCH(\"Vektingsprosent\",Vekting1[[#Headers],[Vektingsprosent]:[Kategoripoeng]],0))*E20","v":6.9999999999999993E-2},{"$f":"IF(SUMIFS($F$13:$F$35,$C$13:$C$35,C20)=$B20,\"Vekting for kategorien er OK!\",\"Sjekk opp\")","v":"Vekting for kategorien er OK!"}]
[null,null,"Gjenbruk og materialvalg","Sirkulære og fleksible bygg",{"$f":"INDEX(GjenbrukMaterialvalg[[Poeng]:[Blåhvit faktor]],MATCH(Vekting!D21,GjenbrukMaterialvalg[Kriterie],0),MATCH(GjenbrukMaterialvalg[[#Headers],[Vekting]],GjenbrukMaterialvalg[[#Headers],[Poeng]:[Blåhvit faktor]],0))","v":0.1},{"$f":"INDEX(Vekting1[[Vektingsprosent]:[Kategoripoeng]],MATCH($C$20,Vekting1[Kategori],0),MATCH(\"Vektingsprosent\",Vekting1[[#Headers],[Vektingsprosent]:[Kategoripoeng]],0))*E21","v":2.0000000000000004E-2}]
[null,null,"Gjenbruk og materialvalg","Ombruk av materialer og bevaring av eksisterende bygg",{"$f":"INDEX(GjenbrukMaterialvalg[[Poeng]:[Blåhvit faktor]],MATCH(Vekting!D22,GjenbrukMaterialvalg[Kriterie],0),MATCH(GjenbrukMaterialvalg[[#Headers],[Vekting]],GjenbrukMaterialvalg[[#Headers],[Poeng]:[Blåhvit faktor]],0))","v":0.35},{"$f":"INDEX(Vekting1[[Vektingsprosent]:[Kategoripoeng]],MATCH($C$20,Vekting1[Kategori],0),MATCH(\"Vektingsprosent\",Vekting1[[#Headers],[Vektingsprosent]:[Kategoripoeng]],0))*E22","v":6.9999999999999993E-2}]
[null,null,"Gjenbruk og materialvalg","Avfallsmengde i byggefase",{"$f":"INDEX(GjenbrukMaterialvalg[[Poeng]:[Blåhvit faktor]],MATCH(Vekting!D23,GjenbrukMaterialvalg[Kriterie],0),MATCH(GjenbrukMaterialvalg[[#Headers],[Vekting]],GjenbrukMaterialvalg[[#Headers],[Poeng]:[Blåhvit faktor]],0))","v":0.1},{"$f":"INDEX(Vekting1[[Vektingsprosent]:[Kategoripoeng]],MATCH($C$20,Vekting1[Kategori],0),MATCH(\"Vektingsprosent\",Vekting1[[#Headers],[Vektingsprosent]:[Kategoripoeng]],0))*E23","v":2.0000000000000004E-2}]
[null,null,"Gjenbruk og materialvalg","Innovasjonspoeng for ombrukbare materialer i fremtiden",{"$f":"INDEX(GjenbrukMaterialvalg[[Poeng]:[Blåhvit faktor]],MATCH(Vekting!D24,GjenbrukMaterialvalg[Kriterie],0),MATCH(GjenbrukMaterialvalg[[#Headers],[Vekting]],GjenbrukMaterialvalg[[#Headers],[Poeng]:[Blåhvit faktor]],0))","v":0.1},{"$f":"INDEX(Vekting1[[Vektingsprosent]:[Kategoripoeng]],MATCH($C$20,Vekting1[Kategori],0),MATCH(\"Vektingsprosent\",Vekting1[[#Headers],[Vektingsprosent]:[Kategoripoeng]],0))*E24","v":2.0000000000000004E-2}]
[null,{"$f":"INDEX(Vekting1[[Vektingsprosent]:[Kategoripoeng]],MATCH($C$25,Vekting1[Kategori],0),MATCH(\"Vektingsprosent\",Vekting1[[#Headers],[Vektingsprosent]:[Kategoripoeng]],0))","v":0.2},"Energiløsninger","Energiytelser i driftsfase av bygg",0.35,{"$f":"INDEX(Vekting1[[Vektingsprosent]:[Kategoripoeng]],MATCH($C$25,Vekting1[Kategori],0),MATCH(\"Vektingsprosent\",Vekting1[[#Headers],[Vektingsprosent]:[Kategoripoeng]],0))*E25","v":6.9999999999999993E-2},{"$f":"IF(SUMIFS($F$13:$F$35,$C$13:$C$35,C25)=B25,\"Vekting for kategorien er OK!\",\"Sjekk opp\")","v":"Vekting for kategorien er OK!"}]
[null,null,"Energiløsninger","Lokal fornybar energiproduksjon",{"$f":"INDEX(Energi[[Poeng]:[Blåhvit faktor]],MATCH(Vekting!D26,Energi[Kriterie],0),MATCH(Energi[[#Headers],[Vekting]],Energi[[#Headers],[Poeng]:[Blåhvit faktor]],0))","v":0.3},{"$f":"INDEX(Vekting1[[Vektingsprosent]:[Kategoripoeng]],MATCH($C$25,Vekting1[Kategori],0),MATCH(\"Vektingsprosent\",Vekting1[[#Headers],[Vektingsprosent]:[Kategoripoeng]],0))*E26","v":0.06}]
[null,null,"Energiløsninger","Lav og nullutslippsteknologi i bygg- og anleggsfase",{"$f":"INDEX(Energi[[Poeng]:[Blåhvit faktor]],MATCH(Vekting!D27,Energi[Kriterie],0),MATCH(Energi[[#Headers],[Vekting]],Energi[[#Headers],[Poeng]:[Blåhvit faktor]],0))","v":0.25},{"$f":"INDEX(Vekting1[[Vektingsprosent]:[Kategoripoeng]],MATCH($C$25,Vekting1[Kategori],0),MATCH(\"Vektingsprosent\",Vekting1[[#Headers],[Vektingsprosent]:[Kategoripoeng]],0))*E27","v":0.05}]
[null,null,"Energiløsninger","Innovasjonspoeng for energiløsninger",{"$f":"INDEX(Energi[[Poeng]:[Blåhvit faktor]],MATCH(Vekting!D28,Energi[Kriterie],0),MATCH(Energi[[#Headers],[Vekting]],Energi[[#Headers],[Poeng]:[Blåhvit faktor]],0))","v":0.1},{"$f":"INDEX(Vekting1[[Vektingsprosent]:[Kategoripoeng]],MATCH($C$25,Vekting1[Kategori],0),MATCH(\"Vektingsprosent\",Vekting1[[#Headers],[Vektingsprosent]:[Kategoripoeng]],0))*E28","v":2.0000000000000004E-2}]
[null,{"$f":"INDEX(Vekting1[[Vektingsprosent]:[Kategoripoeng]],MATCH($C$29,Vekting1[Kategori],0),MATCH(\"Vektingsprosent\",Vekting1[[#Headers],[Vektingsprosent]:[Kategoripoeng]],0))","v":0.35},"Arealbruk","Attraktive uteområder med blågrønne strukturer",{"$f":"INDEX(Arealbruk[[Poeng]:[Blåhvit faktor]],MATCH(Vekting!D29,Arealbruk[Kriterie],0),MATCH(Arealbruk[[#Headers],[Vekting]],Arealbruk[[#Headers],[Poeng]:[Blåhvit faktor]],0))","v":0.15},{"$f":"INDEX(Vekting1[[Vektingsprosent]:[Kategoripoeng]],MATCH($C$29,Vekting1[Kategori],0),MATCH(\"Vektingsprosent\",Vekting1[[#Headers],[Vektingsprosent]:[Kategoripoeng]],0))*E29","v":5.2499999999999998E-2},{"$f":"IF(SUMIFS($F$13:$F$36,$C$13:$C$36,C29)=B29,\"Vekting for kategorien er OK!\",\"Sjekk opp\")","v":"Vekting for kategorien er OK!"}]
[null,null,"Arealbruk","Bevaring av viktig grønnstruktur og karbonrike areal",{"$f":"INDEX(Arealbruk[[Poeng]:[Blåhvit faktor]],MATCH(Vekting!D30,Arealbruk[Kriterie],0),MATCH(Arealbruk[[#Headers],[Vekting]],Arealbruk[[#Headers],[Poeng]:[Blåhvit faktor]],0))","v":0.2},{"$f":"INDEX(Vekting1[[Vektingsprosent]:[Kategoripoeng]],MATCH($C$29,Vekting1[Kategori],0),MATCH(\"Vektingsprosent\",Vekting1[[#Headers],[Vektingsprosent]:[Kategoripoeng]],0))*E30","v":6.9999999999999993E-2}]
[null,null,"Arealbruk","Etablering av karbonbindende vegetasjon",{"$f":"INDEX(Arealbruk[[Poeng]:[Blåhvit faktor]],MATCH(Vekting!D31,Arealbruk[Kriterie],0),MATCH(Arealbruk[[#Headers],[Vekting]],Arealbruk[[#Headers],[Poeng]:[Blåhvit faktor]],0))","v":0.2},{"$f":"INDEX(Vekting1[[Vektingsprosent]:[Kategoripoeng]],MATCH($C$29,Vekting1[Kategori],0),MATCH(\"Vektingsprosent\",Vekting1[[#Headers],[Vektingsprosent]:[Kategoripoeng]],0))*E31","v":6.9999999999999993E-2}]
[null,null,"Arealbruk","Arealeffektive områder",{"$f":"INDEX(Arealbruk[[Poeng]:[Blåhvit faktor]],MATCH(Vekting!D32,Arealbruk[Kriterie],0),MATCH(Arealbruk[[#Headers],[Vekting]],Arealbruk[[#Headers],[Poeng]:[Blåhvit faktor]],0))","v":0.05},{"$f":"INDEX(Vekting1[[Vektingsprosent]:[Kategoripoeng]],MATCH($C$29,Vekting1[Kategori],0),MATCH(\"Vektingsprosent\",Vekting1[[#Headers],[Vektingsprosent]:[Kategoripoeng]],0))*E32","v":1.7499999999999998E-2}]
[null,null,"Arealbruk","Massehåndtering",{"$f":"INDEX(Arealbruk[[Poeng]:[Blåhvit faktor]],MATCH(Vekting!D33,Arealbruk[Kriterie],0),MATCH(Arealbruk[[#Headers],[Vekting]],Arealbruk[[#Headers],[Poeng]:[Blåhvit faktor]],0))","v":0.05},{"$f":"INDEX(Vekting1[[Vektingsprosent]:[Kategoripoeng]],MATCH($C$29,Vekting1[Kategori],0),MATCH(\"Vektingsprosent\",Vekting1[[#Headers],[Vektingsprosent]:[Kategoripoeng]],0))*E33","v":1.7499999999999998E-2}]
[null,null,"Arealbruk","Utføre en klimarisikovurdering med tilhørende klimatilpasning",{"$f":"INDEX(Arealbruk[[Poeng]:[Blåhvit faktor]],MATCH(Vekting!D34,Arealbruk[Kriterie],0),MATCH(Arealbruk[[#Headers],[Vekting]],Arealbruk[[#Headers],[Poeng]:[Blåhvit faktor]],0))","v":0.25},{"$f":"INDEX(Vekting1[[Vektingsprosent]:[Kategoripoeng]],MATCH($C$29,Vekting1[Kategori],0),MATCH(\"Vektingsprosent\",Vekting1[[#Headers],[Vektingsprosent]:[Kategoripoeng]],0))*E34","v":8.7499999999999994E-2}]
[null,null,"Arealbruk","Arealer med fellesfunksjoner",{"$f":"INDEX(Arealbruk[[Poeng]:[Blåhvit faktor]],MATCH(Vekting!D35,Arealbruk[Kriterie],0),MATCH(Arealbruk[[#Headers],[Vekting]],Arealbruk[[#Headers],[Poeng]:[Blåhvit faktor]],0))","v":0.05},{"$f":"INDEX(Vekting1[[Vektingsprosent]:[Kategoripoeng]],MATCH($C$29,Vekting1[Kategori],0),MATCH(\"Vektingsprosent\",Vekting1[[#Headers],[Vektingsprosent]:[Kategoripoeng]],0))*E35","v":1.7499999999999998E-2}]
[null,null,"Arealbruk","Innovasjonspoeng for beregning av klimakonsekvenser fra arealbruksendring",{"$f":"INDEX(Arealbruk[[Poeng]:[Blåhvit faktor]],MATCH(Vekting!D36,Arealbruk[Kriterie],0),MATCH(Arealbruk[[#Headers],[Vekting]],Arealbruk[[#Headers],[Poeng]:[Blåhvit faktor]],0))","v":0.05},{"$f":"INDEX(Vekting1[[Vektingsprosent]:[Kategoripoeng]],MATCH($C$29,Vekting1[Kategori],0),MATCH(\"Vektingsprosent\",Vekting1[[#Headers],[Vektingsprosent]:[Kategoripoeng]],0))*E36","v":1.7499999999999998E-2}]
[null,null,null,null,null,{"$f":"SUM(F13:F36)","v":0.99999999999999989}]
[]
[]
[null,null,null,null,{"$f":"SUM(E41:E64)","v":1}]
[null,null,"Arealbruk","Attraktive uteområder med blågrønne strukturer",{"$f":"INDEX($E$13:$F$36,MATCH(D41,$D$13:$D$36,0),MATCH(\"Vekting totalt (100%)\",$E$12:$F$12,0))","v":5.2499999999999998E-2}]
[null,null,null,"Bevaring av viktig grønnstruktur og karbonrike areal",{"$f":"INDEX($E$13:$F$36,MATCH(D42,$D$13:$D$36,0),MATCH(\"Vekting totalt (100%)\",$E$12:$F$12,0))","v":6.9999999999999993E-2}]
[null,null,null,"Etablering av karbonbindende vegetasjon",6.9999999999999993E-2]
[null,null,null,"Arealeffektive områder",1.7499999999999998E-2]
[null,null,null,"Massehåndtering",1.7499999999999998E-2]
[null,null,null,"Utføre en klimarisikovurdering med tilhørende klimatilpasning",8.7499999999999994E-2]
[null,null,null,"Arealer med fellesfunksjoner",1.7499999999999998E-2]
[null,null,null,"Innovasjonspoeng for beregning av klimakonsekvenser fra arealbruksendring",1.7499999999999998E-2]
[null,null,"Energi-løsninger","Energiytelser i driftsfase av bygg",6.9999999999999993E-2]
[null,null,null,"Lokal fornybar energiproduksjon",0.06]
[null,null,null,"Lav og nullutslippsteknologi i bygg- og anleggsfase",0.05]
[null,null,null,"Innovasjonspoeng for energiløsninger",2.0000000000000004E-2]
[null,null,"Gjenbruk og materialvalg","Bygg på bærekraftige og fornybare materialvalg",6.9999999999999993E-2]
[null,null,null,"Sirkulære og fleksible bygg",2.0000000000000004E-2]
[null,null,null,"Ombruk av materialer og bevaring av eksisterende bygg",6.9999999999999993E-2]
[null,null,null,"Avfallsmengde i byggefase",2.0000000000000004E-2]
[null,null,null,"Innovasjonspoeng for ombrukbare materialer i fremtiden",2.0000000000000004E-2]
[null,null,"Grønn mobilitet","Økt etablering av ladeinfrastruktur",0.02]
[null,null,null,"Gangevennlig utforming",2.5000000000000001E-2]
[null,null,null,"Sykkelvennlig utforming",3.7499999999999999E-2]
[null,null,null,"Klimasmart parkering",6.25E-2]
[null,null,null,"Tilgang til service- og rekreasjonstilbud",3.7499999999999999E-2]
[null,null,null,"Nærhet til kollektivtransport",0.05]
[null,null,null,"Innovasjonspoeng for grønn mobilitet",1.7500000000000002E-2]
[]
[]
[]
[null,{"$f":"INDEX(Vekting1[[Vektingsprosent]:[Kategoripoeng]],MATCH($C$68,Vekting1[Kategori],0),MATCH(\"Vektingsprosent\",Vekting1[[#Headers],[Vektingsprosent]:[Kategoripoeng]],0))","v":0.35},"Arealbruk","Oppnådd",{"$f":"INDEX(Vekting1[[Vektingsprosent]:[Kategoripoeng]],MATCH(Vekting!C68,Vekting1[Kategori],0),MATCH(\"Oppnåelse %\",Vekting1[[#Headers],[Vektingsprosent]:[Kategoripoeng]],0))/B68","v":0},{"$f":"E68*$B68","v":0}]
[null,null,null,"Rest",{"$f":"100%-E68","v":1},{"$f":"E69*B68","v":0.35}]
[null,{"$f":"INDEX(Vekting1[[Vektingsprosent]:[Kategoripoeng]],MATCH($C$70,Vekting1[Kategori],0),MATCH(\"Vektingsprosent\",Vekting1[[#Headers],[Vektingsprosent]:[Kategoripoeng]],0))","v":0.2},"Energiløsninger","Oppnådd",{"$f":"INDEX(Vekting1[[Vektingsprosent]:[Kategoripoeng]],MATCH(Vekting!C70,Vekting1[Kategori],0),MATCH(\"Oppnåelse %\",Vekting1[[#Headers],[Vektingsprosent]:[Kategoripoeng]],0))/B70","v":0},{"$f":"E70*B70","v":0}]
[null,null,null,"Rest",{"$f":"100%-E70","v":1},{"$f":"E71*B70","v":0.2}]
[null,{"$f":"INDEX(Vekting1[[Vektingsprosent]:[Kategoripoeng]],MATCH($C$72,Vekting1[Kategori],0),MATCH(\"Vektingsprosent\",Vekting1[[#Headers],[Vektingsprosent]:[Kategoripoeng]],0))","v":0.2},"Gjenbruk og materialvalg","Oppnådd",{"$f":"INDEX(Vekting1[[Vektingsprosent]:[Kategoripoeng]],MATCH(Vekting!C72,Vekting1[Kategori],0),MATCH(\"Oppnåelse %\",Vekting1[[#Headers],[Vektingsprosent]:[Kategoripoeng]],0))/B72","v":0},{"$f":"E72*B72","v":0}]
[null,null,null,"Rest",{"$f":"100%-E72","v":1},{"$f":"E73*B72","v":0.2}]
[null,{"$f":"INDEX(Vekting1[[Vektingsprosent]:[Kategoripoeng]],MATCH($C$74,Vekting1[Kategori],0),MATCH(\"Vektingsprosent\",Vekting1[[#Headers],[Vektingsprosent]:[Kategoripoeng]],0))","v":0.25},"Grønn mobilitet","Oppnådd",{"$f":"INDEX(Vekting1[[Vektingsprosent]:[Kategoripoeng]],MATCH(Vekting!C74,Vekting1[Kategori],0),MATCH(\"Oppnåelse %\",Vekting1[[#Headers],[Vektingsprosent]:[Kategoripoeng]],0))/B74","v":0},{"$f":"E74*B74","v":0}]
[null,null,null,"Rest",{"$f":"100%-E74","v":1},{"$f":"E75*B74","v":0.25}]

{"sheet":"Kriterier og poengskala","index":8,"n_rows":34,"n_cols":9,"rows_kept":34,"cut":false,"hidden":true,"merged":[[10,1,16,1],[17,1,21,1],[26,1,33,1],[22,1,25,1]]}
[]
[]
[null,"Kriteriesett i blåhvit faktor"]
[]
[]
[]
[]
[]
[]
[null,null,"Kriterienavn",0,1,2,3,4]
[null,"Grønn mobilitet","Økt etablering av ladeinfrastruktur","Ingen ladeinfrastruktur","> 20% av prosjektets totale bilparkeringskapasitet er forbeholdt å ha ladepunkt for el-bil","> 30% av prosjektets totale bilparkeringskapasitet er forbeholdt å ha ladepunkt for el-bil","> 40% av prosjektets totale bilparkeringskapasitet er forbeholdt å ha ladepunkt for el-bil","> 55% av prosjektets totale bilparkeringskapasitet er forbeholdt å ha ladepunkt for el-bil"]
[null,null,"Gangevennlig utforming","Ikke universelt utformet og/eller det er mer enn 70 meter avstand til nærmeste gangforbindelse","Gangnettet er utformet med tanke på trygghet, sikkerhet, komfort med tilstrekkelig belysning og tilrettelagt for vedlikehold året rundt. ","Som 1 poeng, og i tillegg er 1-5 på sjekklisten oppfylt","Som 1 poeng, og i tillegg er 1-6 i sjekklisten oppfylt","Som 1 poeng, og i tillegg er alle punkter i sjekklisten oppfylt"]
[null,null,"Sykkelvennlig utforming","Tilfredsstiller ikke krav i KPA","Krav i KPA er oppfylt","Krav i KPA er oppfylt, i tillegg er punkt 1-6 i sjekklisten for utforming av sykkelparkering oppfylt","Krav i KPA er oppfylt, i tillegg er punkt 1-7 i sjekklisten for utforming av sykkelparkering oppfylt","Krav i KPA er oppfylt, i tillegg er alle punkt  i sjekklisten for utforming av sykkelparkering oppfylt"]
[null,null,"Klimasmart parkering","Parkeringsdekning utover makskravet i KPA","Parkeringsdekning tilsvarer maksimumskravet i KPA. ","Parkeringsdekning tilsvarer minimumskravet i KPA","Som for 2 poeng, og i tillegg er det parkeringsplasser som er forbeholdt samkjøring / tilrettelagt for bildeling","Som for 3 poeng, og i tillegg er det kortere avstand til kollektivknutepunkt enn til privat/reservert parkering. "]
[null,null,"Tilgang til service- og rekreasjonstilbud","Ingen tilbud innenfor gåavstand fra boliger","Mer enn 3 ulike tilbud innenfor gåavstand","Mer enn 3 ulike tilbud innenfor gåavstand, hvorav 1 av tilbudene skal være skole eller barnehage","Mer enn 5 ulike tilbud innenfor gåavstand, hvorav 1 av tilbudene skal være skole eller barnehage","Mer enn 7 ulike tilbud innenfor gåavstand, hvorav 1 av tilbudene skal være skole eller barnehage"]
[null,null,"Nærhet til kollektivtransport","Mer enn 1000 meter til kollektivholdeplass","Mer enn 500 meter til kollektivholdeplass","Mindre enn 500 meter til kollektivholdsplass \nmed minst 1 avgang per time på \nhverdag mellom kl. 07- 18","Mindre enn 400 meter til kollektivholdeplass \nmed minst 2 avganger per time på \nhverdag mellom kl. 07-18. ","Mindre enn 300 meter til kollektivholdeplass \nmed minst 3 avganger per time på \nhverdag mellom kl. 07-18"]
[null,null,"Innovasjonspoeng for grønn mobilitet","Ingen spesielle tiltak","1 innovativ tiltak med bakgrunn i mobilitetsplan","2 innovative tiltak med bakgrunn i mobilitetsplan","3 innovative tiltak med bakgrunn i mobilitetsplan","4 eller flere innovative tiltak med bakgrunn i mobilitetsplan"]
[null,"Gjenbruk og materialvalg","Bygg på bærekraftige og fornybare materialvalg","Prosjektets materialer tilsvarer et standardbygg, på nivå med gjeldende TEK","Prosjektets materialer oppnår minimum 10 % redusert klimagassutslipp sammenlignet med et standardbygg \n(i CO2e/m2 BRA). ","Prosjektets materialer oppnår minimum 20 % redusert klimagassutslipp sammenlignet med et standardbygg \n(i CO2e/m2 BRA). ","Prosjektets materialer oppnår minimum 30 % redusert klimagassutslipp sammenlignet med et standardbygg \n(i CO2e/m2 BRA). ","Prosjektets materialer oppnår minimum 50 % redusert klimagassutslipp sammenlignet med et standardbygg \n(i CO2e/m2 BRA). "]
[null,null,"Sirkulære og fleksible bygg","Ingen tiltak","Et av kriteriene i sjekklisten er utført","Tre av kriteriene i sjekklisten er utført","Fem av kriteriene i sjekklisten er utført","Alle kriteriene i sjekklisten er utført"]
[null,null,"Ombruk av materialer og bevaring av eksisterende bygg","Ingen tiltak for ombruk. Eksisterende bebyggelse rives og materialer behandles som avfall.","Det er gjennomført ombrukskartlegging og gjort en vurdering av ombruk for bygningsmassen.","Minimum 10 % av materialene (målt i vekt) er ombrukte.","Minimum 30 % av materialene (målt i vekt) er ombrukte.","Minimum 50 % av materialene (målt i vekt) er ombrukte."]
[null,null,"Avfallsmengde i byggefase","Det er ingen plan for avfallshåndtering i byggefasen","Det er utarbeidet en plan for avfalls-/ressurshåndtering","Mengden byggavfall generert er maks 40 kg/m2 BRA","Mengden byggavfall generert er maks 25 kg/m2 BRA","Mengden byggavfall generert er maks 19 kg/m2 BRA"]
[null,null,"Innovasjonspoeng for ombrukbare materialer i fremtiden","Ingen tiltak utover krav i KPA","4 av punktene i sjekklisten er oppfylt","7 av punktene i sjekklisten er oppfylt","10 av punktene i sjekklisten er oppfylt","Alle punktene i sjekklisten er oppfylt"]
[null,"Energi-løsninger","Energiytelser i driftsfase av bygg","Nybygg: Netto energibehov tilsvarer nivå i gjeldende TEK.\n\nEksisterende bygg: Ingen tiltak for å forbedre byggets energiytelser","Nybygg: Netto energibehov tilsvarer 10% lavere enn nivå i gjeldende TEK.\n\nEksisterende bygg: Oppgradert til minimum 20 % redusert energibehov fra eksisterende tilstand","Nybygg: Netto energibehov tilsvarer 30% lavere enn nivå i gjeldende TEK.\n\nEksisterende bygg: Oppgradert til/tilsvarer gjeldende nivå i TEK eller bedre","Nybygg: nZEB etter FutureBuilts kriterier.\n\nEksisterende bygg: Oppgradert til/tilsvarer 30% bedre enn TEK nivå eller bedre","Nybygg: Plusshusnivå etter FutureBuilts kriterier.\n\nEksisterende bygg: Oppgradert til passivhusnivå eller bedre.","Manuelt"]
[null,null,"Lokal fornybar energiproduksjon","Ingen lokal fornybar energiforsyning / ingen dokumentasjon. \nFor prosjekter utenfor konsesjonsområde eller som fritas tilkoplingsplikt, skal nullutslippsløsninger vurderes. \n\n(Gjelder nybygg og ved hovedombygging med samlet oppvarmet bruksareal er over 500 m2)","Lokal fornybar energiforsyning og/eller spillvarme dekker minst 10% av energibruken i området","Lokal fornybar energiforsyning og/eller spillvarme dekker minst 20% av energibruken i området","Lokal fornybar energiforsyning og/eller spillvarme dekker minst 50% av energibruken i området","Lokal fornybar energiforsyning og/eller spillvarme dekker 100% av energibruken i området"]
[null,null,"Lav og nullutslippsteknologi i bygg- og anleggsfase","Ingen tiltak for å redusere utslipp.\n\nMerk at: Det stilles minimumskrav om bruk av Euro 6-klassifiserte kjøretøy på byggeplassen og i forbindelse med transport til og fra anleggsplassen.","Det er utarbeidet en plan for å redusere klimagassutslipp i bygge- og anleggsfasen","Lett fossilfri byggeplass\n\nByggvarme og tørk: utslippsfritt ved bruk av ren-elektrisk, varmepumpe, fjernvarme. \n\nBygge- og anleggsplass: fossilfritt. \n\n\nTransport: iht. miljødirektoratet sine omsetningskrav","Fossilfri byggeplass\n\nByggvarme og tørk: utslippsfritt ved bruk av ren-elektrisk, varmepumpe, fjernvarme. \n\nBygge- og anleggsplass: delvis utslippsfritt for anleggsmaskiner. \n\nTransport: utslippsfritt for persontransport og varebiler","Utslippsfri byggeplass\n\nByggvarme og tørk: utslippsfritt ved bruk av ren-elektrisk, varmepumpe, fjernvarme. \n\nBygge- og anleggsplass: utslippsfritt. \n\n\nTransport: delvis utslippsfritt","Manuelt"]
[null,null,"Innovasjonspoeng for energiløsninger","Ingen spesielle tiltak","1 innovativ tiltak ","2 innovative tiltak ","3 innovative tiltak ","4 eller flere innovative tiltak "]
[null,"Arealbruk","Attraktive uteområder med blågrønne strukturer","Oppfyller ikke krav til uteområder og overvannshåndtering iht KPA","Oppfyller krav til uteområder og overvannshåndtering iht KPA ","Samme som 1 poeng, og i tillegg er 5 punkter på sjekkliste er oppfylt, og prosjektet oppnår minimum 0,3 i blågrønn faktor","Samme som 1 poeng, og i tillegg er 7 punkter på sjekklisten oppnådd, og prosjektet oppnår minimum 0,7 i blågrønn faktor","Samme som for 1 poeng, og i tillegg er alle punkter på sjekklisten er oppnådd, og prosjektet oppnår minimum 0,7 i blågrønn faktor"]
[null,null,"Bevaring av viktig grønnstruktur og karbonrike areal","Bygge ned skog og myr/våtmark eller økosystemer i vann","Bygge ned dyrka mark, beite og annen utmark.","Bygge på ubebygd område uten vesentlige naturverdier/åpen fastmark","Bygge på allererde bebygd område eller bearbeide flater","Bygge på allerede bebygd område eller bearbeide flater, og bevaring av eksisterende naturmangfold. "]
[null,null,"Etablering av karbonbindende vegetasjon","Ingen tiltak for å etablere karbonbindende vegetasjon","Minimum 10 % av planområdet reguleres som ubebygd og vegetert","Minimum 20 % av planområdet reguleres som ubebygd og vegetert, og minimum 3 av tiltakene i sjekklisten for å øke karbonbindingen er sikret.","Minimum 20 % av planområdet reguleres som ubebygd og vegetert, og minimum 6 av tiltakene i sjekklisten for å øke karbonbindingen er sikret.","Minimum 30 % av planområdet reguleres som ubebygd og vegetert, og alle tiltakene i sjekklisten for å øke karbonbindingen er sikret."]
[null,null,"Arealeffektive områder","Sentrumsformål/bybebyggelse: < 130 % BRA \nAndre områder: >  50% BYA","Sentrumsformål/bybebyggelse: > 130 % BRA   \nAndre områder: > 40 % BYA","Sentrumsformål/bybebyggelse: > 160 % BRA  \nAndre områder: > 30 % BYA","Sentrumsformål/bybebyggelse: > 180 % BRA  \nAndre områder: > 25 % BYA","Sentrumsformål/bybebyggelse: > 200 % BRA \nAndre områder: < 25 % BYA","Manuelt"]
[null,null,"Massehåndtering","Tiltaket medfører uttak/deponering av masser > 1000 m3, berører areal > 1 da eller gir et avvik fra eksisterende terreng > 3 m. ","Tiltaket medfører uttak/deponering av masser < 1000 m3, berører areal < 1 da eller gir et avvik fra eksisterende terreng < 3 m.","Som for 0 poeng, men overskuddsmasser tilgjengeliggjøres og benyttes i andre, nærliggende prosjekt* med godkjenning for mottak av denne typen og denne mengden masser.","Massebalanse er oppnådd, overskuddsmasser behandles/gjenbrukes lokalt i planområdet. Eventuelt bortkjørt masse er foredlet til byggeråstoffer som pukk, grus, sand o.l","Minimum 30 % av planområdet forblir uberørt. For resterende del av planområdet er massebalanse oppnådd samt overskuddsmasser behandles/gjenbrukes lokalt i planområdet."]
[null,null,"Utføre en klimarisikovurdering med tilhørende klimatilpasning","Ikke utført klimarisiko","Utført klimarisikoanalyse og beskrive anbefalinger og løsninger i prosjekt ","Samme som 1 poeng og planlegger å utføre > 25 % av tiltakene","Samme som 1 poeng og planlegger å utføre > 50 % av tiltakene","Samme som 1 poeng og planlegger å utføre 100 % av tiltakene"]
[null,null,"Arealer med fellesfunksjoner","Ingen tilrettelegging","Prosjektet tilrettelegger for innendørs fellesfunksjoner og sambruk av arealer, minimum forsamlingsrom med kjøkken og verkstedrom.","Prosjektet tilrettelegger for minimum 3 m2 fellesareal per boenhet og pr 100 m2 BRA annet formål til fellesfunksjoner.","Prosjektet tilrettelegger for minimum 9 m2 fellesareal per boenhet og pr 100 m2 BRA annet formål til fellesfunksjoner.","Prosjektet tilrettelegger for minimum 15 m2 fellesareal per boenhet og pr 100 m2 BRA annet formål til fellesfunksjoner."]
[null,null,"Innovasjonspoeng for beregning av klimakonsekvenser fra arealbruksendring","Ingen analyse gjort","Beregning utført, men viser økte utslipp som følge av utbygging.","Beregning viser ingen økte utslipp som følge av utbygging.","Netto opptak av  CO2e ift. før utbyggingen.","Betydelig netto opptak av CO2e ift. før utbyggingen."]